Workbook

Sheet Anleitung
A1: W I L K A - V O R S P R U N G D U R C H Q U A L I T Ä T
A8: WILKA-Schließplan - Erfassung im Excel-Format
A9: Anleitung
A12: Der WILKA-Excel-Schließplan ist mit vielen Funktionen ausgestattet, die Ihnen das Erstellen eines Schließplanes
A13: vereinfachern sollen.
A15: Auf den nachstehenden Seiten erhalten Sie eine Übersicht über die Funktionen des WILKA-Excel-Schließplanes.
A17: Bei Fragen oder Anregungen zu dem Excelschließplan senden Sie uns bitte eine E-Mail an:
A19: schliessanlagen@wilka.de
B22: Inhaltsverzeichnis
B25: Einleitung | F25: Seite 1
B26: 1. Musterschließanlagen | F26: Seite 1
B27: 2. Schließplan | F27: Seite 2
B28: 2.1 Systemauswahl | F28: Seite 3
B29: 2.2 Anlagenart | F29: Seite 3
B30: 2.3 Artikelauswahl | F30: Seite 4
B31: 2.4 Färbungen und Sonderausstattungen | F31: Seite 5
B32: 3. Artikelliste | F32: Seite 6
B33: 4. Massenermittlung | F33: Seite 7
B34: 4.1 Massenermittlung als Angebotsformular | F34: Seite 9
B35: 5. Sonderfunktion mit Makro | F35: Seite 10
B36: 5.1 Markierten Bereich drucken | F36: Seite 10
B37: 5.2 Schließplanversand per E-Mail | F37: Seite 11
A60: Einleitung
A62: Der WILKA-Excel-Schließplan dient zur Erfassung Ihres Schließplanes mit allen in Excel vorhandenen
A63: Funktionen. Sie haben hier die Möglichkeit fünf Tabellen mit besonderen Features auszuwählen.
A64: Die einzelnen Tabellen erreichen Sie durch Auswahl eines Karteireiters im unteren Teil des Bildschirmes.
A70: 1. Musterschließanlagen
A72: Für jede gängige Schließanlagenart haben wir eine Musterschließanlage hinterlegt. Durch Klick des Dropdown-Pfeiles
A73: öffnet sich eine Auswahl aller vorhandenen Schließanlagenarten.
A109: Nach Auswahl einer Schließanlagenart wird Ihnen eine entsprechende Musterschließanlage angezeigt.
A110: Hier können Sie die Schreibweise von übergeordneten Schlüsseln und Zentral- bzw. Mitschließungsfunktionen
A111: entnehmen.
A128: 2. Schließplan
A130: Der WILKA-Excel-Schließplan ist wie der ausgedruckte WILKA-Werksplan aufgebaut. Erfassen Sie hier
A131: Ihre Schließanlage mit Schließungsnummern, Türnummern, Raumbezeichnungen, Stückzahlen Zylinder und
A132: Schlüssel, Artikel, Längen und Ausführungen. Geben Sie den einzelnen Zylindern die gewünschten Funktionen.
A159: 2.1 Systemauswahl
A161: Entscheiden Sie vor der Eingabe in welchem Schließanlagensystem die Anlage bestellt werden soll. Durch
A162: Klick auf den Pfeil erscheinen in einem Dropdown-Menü alle verfügbaren Systeme.
A183: 2.2 Anlagenart
A185: Wie bei der Systemauswahl können Sie auch hier über ein Dropdown-Menü Ihre Wunschanlagenart auswählen.
A211: 2.3 Artikelauswahl
A213: In jeder Zelle unter Artikel haben Sie ein Dropdown-Menü in dem Sie den entsprechenen Artikel auswählen können.
A214: Wenn Ihnen die WILKA-Artikel geläufig sind können Sie diese natürlich auch händisch einpflegen.
A246: WICHTIG !!! Bevor Sie mit der Artikeleinpflege starten, wählen Sie Ihr gewünschtes Anlagensystem aus.
A247: Die Artikelliste bezieht sich immer auf das gewählte System. Bei falscher Artikeleingabe erscheint
A248: eine Fehlermeldung.
A282: 2.4 Färbungen und Zusatzausstattungen
A284: In der Artikelliste sind neben den WILKA-Artikeln auch die möglichen Färbungen und ein Auszug aus den
A285: gängigen Zusatzausstattungen aufgeführt. Entnehmen Sie hier die entsprechenden Kurzbezeichnungen und
A286: tragen Sie diese in der Position bei der Spalte Färbung bzw. ZAS (Zusatzausstattung) ein.
A305: 3. Artikelliste
A307: In der Artikelliste sind alle Schließanlagensysteme hinterlegt. Die Artikel sind nach Zylinderart (wie z.B. Doppel-,
A308: Halb-, Knaufzylinder usw.) aufgeführt. Wählen Sie den gewünschten Zylindertyp aus der nebenstehenden
A309: Beschreibung und suchen in der Spalte System die Artikelbezeichnung.
A311: In unserem nachstehenden Beispiel suchen wir einen Profildoppelzylinder mit Not- und Gefahrenfunktion im
A312: Wendeschlüssel-System 3VE.
A329: Neben den aufgeführten Artikeltypen finden Sie hier auch die gängigen Zylinderfärbungen und -zusatzausstattungen.
A330: Auch diese sind Systemabhängig aufgelistet und die Machbarkeit wird durch ein "X" gekennzeichnet.
A356: 4. Sonderfunktionen mit Makro
A358: Der WILKA-Excel-Schließplan enthält Sonderfunktionen die über ein Makro aktiviert werden. Um diese Funktionen
A359: nutzen zu können, müssen Sie in Ihrer Excelversion die Sicherheitsfunktion von Makros anpassen.
A362: 4.1 Markierten Bereich drucken
A364: Markieren Sie in Ihrem Schließplan den zu druckenden Bereich.
A390: Klicken Sie dann mit der Maus auf den Button "Markierten Bereich drucken" und der ausgewählte Schließplan-
A391: bereich wird auf Ihrem ausgewählten Standarddrucker ausgedruckt.
A395: 4.2 Schließplanversand per E-Mail
A397: Nach Fertigstellung des Schließplanes haben Sie die Möglichkeit diesen per E-Mail weiterzuleiten. Betätigen Sie
A398: hierfür den Button "Versand per E-Mail"
A400: Es erscheint automatisch die Aufforderung den Schließplan zu speichern. Es wäre sinnvoll einen Ordner
A401: Schließanlagen (oder ähnlich) anzulegen, in dem Sie Ihre Schließpläne hinterlegen können. Geben Sie
A402: Ihrem Schließplan einen entsprechenden Namen und speichern diesen.
A403: Nach dem Speichervorgang öffnet sich Ihr E-Mail-Fenster mit der Datei im Anhang. Bitte beachten Sie hier,
A404: es handelt sich hierbei nur um den reinen Schließplan, die Tabellen Anleitung, Musterschließanlagen, Artikellisten
A405: und Massenermittlung sind aufgrund der Größe nicht mehr vorhanden.
A406: Sollten Sie jedoch alle Daten weiter benötigen, drücken Sie "Speichern unter" in Ihrer Excelversion und geben
A407: der Datei einen Namen. Die Datei WILKA-Schließplan… ist standardmäßig schreibgeschützt und kann nicht
A408: überschrieben werden.
A415: Speichern Sie Ihre Datei wie beschrieben.
A421: Die Tabellen Anleitung, Musterschließanlagen, Artikelliste und Massenermittlung werden aufgrund der Dateigröße
A422: für den E-Mail-Versand gelöscht.
A447: Es öffnet sich Ihr E-Mail-Programm mit der Excel-Schließplandatei im Anhang. Standardmäßig ist die E-Mail-
A448: Adresse schliessanlagen@wilka.de hinterlegt.

Sheet Musterschließanlagen
A1: GHS | B1: . | N1: Fachhändler: | Z1: Anzahl | BA1: 1 | BB1: 2 | BC1: 3 | BD1: 4 | BE1: 5 | BF1: 6 | BG1: 7 | BH1: 8 | BI1: 9 | BJ1: 10 | BK1: 11 | BL1: 12 | BM1: 13 | BN1: 14 | BO1: 15 | BP1: 16 | BQ1: 17 | BR1: 18 | BS1: 19 | BT1: 20 | BU1: 21 | BV1: 22 | BW1: 23 | BX1: 24 | BY1: 25 | BZ1: 26 | CA1: 27 | CB1: 28 | CC1: 29 | CD1: 30 | CE1: 31 | CF1: 32 | CG1: 33 | CH1: 34 | CI1: 35 | CJ1: 36 | CK1: 37 | CL1: 38 | CM1: 39 | CN1: 40 | CO1: 41 | CP1: 42 | CQ1: 43 | CR1: 44 | CS1: 45 | CT1: 46 | CU1: 47 | CV1: 48 | CW1: 49 | CX1: 50 | CY1: 51 | CZ1: 52 | DA1: 53 | DB1: 54 | DC1: 55 | DD1: 56 | DE1: 57 | DF1: 58 | DG1: 59 | DH1: 60 | DI1: 61 | DJ1: 62 | DK1: 63 | DL1: 64 | DM1: 65 | DN1: 66 | DO1: 67 | DP1: 68 | DQ1: 69 | DR1: 70 | DS1: 71 | DT1: 72 | DU1: 73 | DV1: 74 | DW1: 75 | DX1: 76 | DY1: 77 | DZ1: 78 | EA1: 79 | EB1: 80 | EC1: 81 | ED1: 82 | EE1: 83
A2: HS | B2: .
A3: HS/Z | B3: . | C3: Anlagenart: | F3: GHS | Z3: Übergeordnete Schlüssel
A4: Z/HS | B4: . | C4: System: | F4: TH6
A5: Z | B5: . | C5: Kunde: | F5: Max Mustermann | N5: Feld für Hinweise:
A6: SP | B6: . | F6: Musterstr. 1
A7: STR | B7: . | F7: 55555 Musterdorf
A8: HSR | B8: . | C8: Kom.: | F8: Muster
A9: Standard | B9: . | C9: Datum: | F9: 2006-03-30 | AA9: =IF(VLOOKUP($F$3,$BA$13:$IV$18,11,FALSE)<=0,"",VLOOKUP($F$3,$BA$13:$IV$18,11,FALSE)) -> GHS | AB9: =IF(VLOOKUP($F$3,$BA$13:$IV$18,12,FALSE)<=0,"",VLOOKUP($F$3,$BA$13:$IV$18,12,FALSE)) -> GS 1 | AC9: =IF(VLOOKUP($F$3,$BA$13:$IV$18,13,FALSE)<=0,"",VLOOKUP($F$3,$BA$13:$IV$18,13,FALSE)) -> GS 2 | AD9: =IF(VLOOKUP($F$3,$BA$13:$IV$18,14,FALSE)<=0,"",VLOOKUP($F$3,$BA$13:$IV$18,14,FALSE)) -> GS 3 | DH9: Spalte 1 | DN9: Spalte 2 | DT9: Spalte 3 | DZ9: Spalte 4
A10: WZ | B10: WILKA - VORSPRUNG DURCH QUALITÄT | N10: . | AA10: =IF(VLOOKUP($F$3,$BA$13:$IV$18,58,FALSE)<=0,"",VLOOKUP($F$3,$BA$13:$IV$18,58,FALSE)) -> Mmv | AB10: Mmv | AC10: Mmv | AD10: Mmv
B11: Position | D11: Schließungs- nummer | F11: Türnummer | H11: Raumbezeichnung | N11: Stückzahl | R11: Artikel | T11: Längen | X11: Färbung | AA11: Mmv | AB11: Mmv | AC11: Mmv | AD11: Mmv
N12: Zylinder | P12: Schlüssel | T12: A Aussen | V12: B Innen | Z12: ZAS | BA12: Art | BB12: Schlg. 1 | BC12: Bez. 1 | BD12: Stückz. 1 | BE12: Schlüssel 1 | BF12: Artikel 1 | BG12: Lg A1 | BH12: Lg B1 | BI12: Färb. 1 | BJ12: ZAS 1 | BK12: Übg 1 | BL12: Übg 2 | BM12: Übg 3 | BN12: Übg 4 | BO12: Schlg. 2 | BP12: Bez. 2 | BQ12: Stückz. 2 | BR12: Schlüssel 2 | BS12: Artikel 2 | BT12: Lg A2 | BU12: Lg B2 | BV12: Färb. 2 | BW12: ZAS 2 | BX12: Schlg. 3 | BY12: Bez. 3 | BZ12: Stückz. 3 | CA12: Schlüssel 3 | CB12: Artikel 3 | CC12: Lg A3 | CD12: Lg B3 | CE12: Färb. 3 | CF12: ZAS 3 | CG12: Schlg. 4 | CH12: Bez. 4 | CI12: Stückz. 4 | CJ12: Schlüssel 4 | CK12: Artikel 4 | CL12: Lg A4 | CM12: Lg B4 | CN12: Färb. 4 | CO12: ZAS 4 | CP12: Schlg. 5 | CQ12: Bez. 5 | CR12: Stückz. 5 | CS12: Schlüssel 5 | CT12: Artikel 5 | CU12: Lg A5 | CV12: Lg B5 | CW12: Färb. 5 | CX12: ZAS 5 | CY12: Schlg. 6 | CZ12: Bez. 6 | DA12: Stückz. 6 | DB12: Schlüssel 6 | DC12: Artikel 6 | DD12: Lg A6 | DE12: Lg B6 | DF12: Färb. 6 | DG12: ZAS 6 | DH12: Fkt. 1 | DI12: Fkt. 2 | DJ12: Fkt. 3 | DK12: Fkt. 4 | DL12: Fkt. 5 | DM12: Fkt. 6 | DN12: Fkt. 7 | DO12: Fkt. 8 | DP12: Fkt. 9 | DQ12: Fkt.10 | DR12: Fkt.11 | DS12: Fkt.12 | DT12: Fkt.13 | DU12: Fkt.14 | DV12: Fkt.15 | DW12: Fkt.16 | DX12: Fkt.17 | DY12: Fkt.18 | DZ12: Fkt.19 | EA12: Fkt.20 | EB12: Fkt.21 | EC12: Fkt.22 | ED12: Fkt.23 | EE12: Fkt.24
D13: =IF(VLOOKUP($F$3,$BA$13:$IV$18,2,FALSE)<=0,"",VLOOKUP($F$3,$BA$13:$IV$18,2,FALSE)) -> 1 | H13: =IF(VLOOKUP($F$3,$BA$13:$IV$18,3,FALSE)<=0,"",VLOOKUP($F$3,$BA$13:$IV$18,3,FALSE)) -> Verwaltung | J13: =IF(VLOOKUP($F$3,$BA$13:$IV$18,2,FALSE)<=0,"",VLOOKUP($F$3,$BA$13:$IV$18,2,FALSE)) -> 1 | L13: =IF(VLOOKUP($F$3,$BA$13:$IV$18,2,FALSE)<=0,"",VLOOKUP($F$3,$BA$13:$IV$18,2,FALSE)) -> 1 | N13: =IF(VLOOKUP($F$3,$BA$13:$IV$18,4,FALSE)<=0,"",VLOOKUP($F$3,$BA$13:$IV$18,4,FALSE)) -> 2 | P13: =IF(VLOOKUP($F$3,$BA$13:$IV$18,5,FALSE)<=0,"",VLOOKUP($F$3,$BA$13:$IV$18,5,FALSE)) -> 6 | R13: =IF(VLOOKUP($F$3,$BA$13:$IV$18,6,FALSE)<=0,"",VLOOKUP($F$3,$BA$13:$IV$18,6,FALSE)) -> 1400 | T13: =IF(VLOOKUP($F$3,$BA$13:$IV$18,7,FALSE)<=0,"",VLOOKUP($F$3,$BA$13:$IV$18,7,FALSE)) -> 30 | V13: =IF(VLOOKUP($F$3,$BA$13:$IV$18,8,FALSE)<=0,"",VLOOKUP($F$3,$BA$13:$IV$18,8,FALSE)) -> 40 | X13: =IF(VLOOKUP($F$3,$BA$13:$IV$18,9,FALSE)<=0,"",VLOOKUP($F$3,$BA$13:$IV$18,9,FALSE)) -> Mmv | Z13: =IF(VLOOKUP($F$3,$BA$13:$IV$18,10,FALSE)<=0,"",VLOOKUP($F$3,$BA$13:$IV$18,10,FALSE)) ->  | AA13: =IF(VLOOKUP($F$3,$BA$13:$IV$18,60,FALSE)<=0,"",VLOOKUP($F$3,$BA$13:$IV$18,60,FALSE)) -> X | AB13: =IF(VLOOKUP($F$3,$BA$13:$IV$18,66,FALSE)<=0,"",VLOOKUP($F$3,$BA$13:$IV$18,66,FALSE)) -> X | AC13: =IF(VLOOKUP($F$3,$BA$13:$IV$18,72,FALSE)<=0,"",VLOOKUP($F$3,$BA$13:$IV$18,72,FALSE)) ->  | AD13: =IF(VLOOKUP($F$3,$BA$13:$IV$18,78,FALSE)<=0,"",VLOOKUP($F$3,$BA$13:$IV$18,78,FALSE)) -> X | BA13: GHS | BB13: 1 | BC13: Verwaltung | BD13: 2 | BE13: 6 | BF13: 1400 | BG13: 30 | BH13: 40 | BI13: Mmv | BK13: GHS | BL13: GS 1 | BM13: GS 2 | BN13: GS 3 | BO13: 2 | BP13: Buchhaltung | BQ13: 1 | BR13: 3 | BS13: 1400 | BT13: 40 | BU13: 40 | BV13: Mmv | BX13: 3 | BY13: Produktion | BZ13: 1 | CA13: 3 | CB13: 1405 | CC13: 30 | CD13: 30 | CE13: Mmv | CG13: 4 | CH13: Versand | CI13: 1 | CJ13: 3 | CK13: 1400 | CL13: 30 | CM13: 30 | CN13: Mmv | CP13: 5 | CQ13: Verkauf | CR13: 1 | CS13: 3 | CT13: 1400 | CU13: 30 | CV13: 30 | CW13: Mpol | CY13: 6 | CZ13: Einkauf | DA13: 1 | DB13: 3 | DC13: 1405 | DD13: 30 | DE13: 40 | DF13: Mmv | DG13: 5 | DH13: X | DI13: X | DJ13: X | DK13: X | DL13: X | DM13: X | DN13: X | DO13: X | DR13: X | DS13: X | DV13: X | DW13: X | DZ13: X | ED13: X | EE13: X
D14: =IF(VLOOKUP($F$3,$BA$13:$IV$18,15,FALSE)<=0,"",VLOOKUP($F$3,$BA$13:$IV$18,15,FALSE)) -> 2 | H14: =IF(VLOOKUP($F$3,$BA$13:$IV$18,16,FALSE)<=0,"",VLOOKUP($F$3,$BA$13:$IV$18,16,FALSE)) -> Buchhaltung | J14: 1 | L14: 1 | N14: =IF(VLOOKUP($F$3,$BA$13:$IV$18,17,FALSE)<=0,"",VLOOKUP($F$3,$BA$13:$IV$18,17,FALSE)) -> 1 | P14: =IF(VLOOKUP($F$3,$BA$13:$IV$18,18,FALSE)<=0,"",VLOOKUP($F$3,$BA$13:$IV$18,18,FALSE)) -> 3 | R14: =IF(VLOOKUP($F$3,$BA$13:$IV$18,19,FALSE)<=0,"",VLOOKUP($F$3,$BA$13:$IV$18,19,FALSE)) -> 1400 | T14: =IF(VLOOKUP($F$3,$BA$13:$IV$18,20,FALSE)<=0,"",VLOOKUP($F$3,$BA$13:$IV$18,20,FALSE)) -> 40 | V14: =IF(VLOOKUP($F$3,$BA$13:$IV$18,21,FALSE)<=0,"",VLOOKUP($F$3,$BA$13:$IV$18,21,FALSE)) -> 40 | X14: =IF(VLOOKUP($F$3,$BA$13:$IV$18,22,FALSE)<=0,"",VLOOKUP($F$3,$BA$13:$IV$18,22,FALSE)) -> Mmv | Z14: =IF(VLOOKUP($F$3,$BA$13:$IV$18,23,FALSE)<=0,"",VLOOKUP($F$3,$BA$13:$IV$18,23,FALSE)) ->  | AA14: =IF(VLOOKUP($F$3,$BA$13:$IV$18,61,FALSE)<=0,"",VLOOKUP($F$3,$BA$13:$IV$18,61,FALSE)) -> X | AB14: =IF(VLOOKUP($F$3,$BA$13:$IV$18,67,FALSE)<=0,"",VLOOKUP($F$3,$BA$13:$IV$18,67,FALSE)) -> X | AC14: =IF(VLOOKUP($F$3,$BA$13:$IV$18,73,FALSE)<=0,"",VLOOKUP($F$3,$BA$13:$IV$18,73,FALSE)) ->  | AD14: =IF(VLOOKUP($F$3,$BA$13:$IV$18,79,FALSE)<=0,"",VLOOKUP($F$3,$BA$13:$IV$18,79,FALSE)) ->  | BA14: HS | BB14: 1 | BC14: Verwaltung | BD14: 1 | BE14: 3 | BF14: 1463 | BG14: 30 | BH14: 45 | BI14: Mmv | BK14: HS | BO14: 2 | BP14: Buchhaltung | BQ14: 1 | BR14: 3 | BS14: 1463 | BT14: 30 | BU14: 40 | BV14: Mmv | BX14: 3 | BY14: Produktion | BZ14: 1 | CA14: 3 | CB14: 1400 | CC14: 30 | CD14: 40 | CE14: Mmv | CG14: 4 | CH14: Versand | CI14: 1 | CJ14: 3 | CK14: 1400 | CL14: 30 | CM14: 40 | CN14: Mmv | CP14: 5 | CQ14: Verkauf | CR14: 1 | CS14: 3 | CT14: 1463 | CU14: 30 | CV14: 40 | CW14: Mpol | DH14: X | DI14: X | DJ14: X | DK14: X | DL14: X
D15: =IF(VLOOKUP($F$3,$BA$13:$IV$18,24,FALSE)<=0,"",VLOOKUP($F$3,$BA$13:$IV$18,24,FALSE)) -> 3 | H15: =IF(VLOOKUP($F$3,$BA$13:$IV$18,25,FALSE)<=0,"",VLOOKUP($F$3,$BA$13:$IV$18,25,FALSE)) -> Produktion | J15: 1 | L15: 1 | N15: =IF(VLOOKUP($F$3,$BA$13:$IV$18,26,FALSE)<=0,"",VLOOKUP($F$3,$BA$13:$IV$18,26,FALSE)) -> 1 | P15: =IF(VLOOKUP($F$3,$BA$13:$IV$18,27,FALSE)<=0,"",VLOOKUP($F$3,$BA$13:$IV$18,27,FALSE)) -> 3 | R15: =IF(VLOOKUP($F$3,$BA$13:$IV$18,28,FALSE)<=0,"",VLOOKUP($F$3,$BA$13:$IV$18,28,FALSE)) -> 1405 | T15: =IF(VLOOKUP($F$3,$BA$13:$IV$18,29,FALSE)<=0,"",VLOOKUP($F$3,$BA$13:$IV$18,29,FALSE)) -> 30 | V15: =IF(VLOOKUP($F$3,$BA$13:$IV$18,30,FALSE)<=0,"",VLOOKUP($F$3,$BA$13:$IV$18,30,FALSE)) -> 30 | X15: =IF(VLOOKUP($F$3,$BA$13:$IV$18,31,FALSE)<=0,"",VLOOKUP($F$3,$BA$13:$IV$18,31,FALSE)) -> Mmv | Z15: =IF(VLOOKUP($F$3,$BA$13:$IV$18,32,FALSE)<=0,"",VLOOKUP($F$3,$BA$13:$IV$18,32,FALSE)) ->  | AA15: =IF(VLOOKUP($F$3,$BA$13:$IV$18,62,FALSE)<=0,"",VLOOKUP($F$3,$BA$13:$IV$18,62,FALSE)) -> X | AB15: =IF(VLOOKUP($F$3,$BA$13:$IV$18,68,FALSE)<=0,"",VLOOKUP($F$3,$BA$13:$IV$18,68,FALSE)) ->  | AC15: =IF(VLOOKUP($F$3,$BA$13:$IV$18,74,FALSE)<=0,"",VLOOKUP($F$3,$BA$13:$IV$18,74,FALSE)) -> X | AD15: =IF(VLOOKUP($F$3,$BA$13:$IV$18,80,FALSE)<=0,"",VLOOKUP($F$3,$BA$13:$IV$18,80,FALSE)) ->  | BA15: HS/Z | BB15: Z | BC15: Haustür | BD15: 1 | BE15: 3 | BF15: 1463 | BG15: 30 | BH15: 50 | BI15: Mmv | BK15: HS | BM15: Z | BO15: 1 | BP15: Wohnung 1 | BQ15: 1 | BR15: 3 | BS15: 1463 | BT15: 40 | BU15: 50 | BV15: Mmv | BX15: 2 | BY15: Wohnung 2 | BZ15: 1 | CA15: 3 | CB15: 1463 | CC15: 40 | CD15: 50 | CE15: Mmv | CG15: 3 | CH15: Heizungsraum | CI15: 1 | CK15: 1400 | CL15: 30 | CM15: 50 | CN15: Mmv | CP15: Z | CQ15: Kellertür | CR15: 1 | CS15: 3 | CT15: 1400 | CU15: 30 | CV15: 50 | CW15: Mmv | DH15: X | DI15: X | DJ15: X | DK15: X | DL15: X | DT15: Z | DU15: I | DV15: I | DW15: I | DX15: Z
D16: =IF(VLOOKUP($F$3,$BA$13:$IV$18,33,FALSE)<=0,"",VLOOKUP($F$3,$BA$13:$IV$18,33,FALSE)) -> 4 | H16: =IF(VLOOKUP($F$3,$BA$13:$IV$18,34,FALSE)<=0,"",VLOOKUP($F$3,$BA$13:$IV$18,34,FALSE)) -> Versand | J16: 1 | L16: 1 | N16: =IF(VLOOKUP($F$3,$BA$13:$IV$18,35,FALSE)<=0,"",VLOOKUP($F$3,$BA$13:$IV$18,35,FALSE)) -> 1 | P16: =IF(VLOOKUP($F$3,$BA$13:$IV$18,36,FALSE)<=0,"",VLOOKUP($F$3,$BA$13:$IV$18,36,FALSE)) -> 3 | R16: =IF(VLOOKUP($F$3,$BA$13:$IV$18,37,FALSE)<=0,"",VLOOKUP($F$3,$BA$13:$IV$18,37,FALSE)) -> 1400 | T16: =IF(VLOOKUP($F$3,$BA$13:$IV$18,38,FALSE)<=0,"",VLOOKUP($F$3,$BA$13:$IV$18,38,FALSE)) -> 30 | V16: =IF(VLOOKUP($F$3,$BA$13:$IV$18,39,FALSE)<=0,"",VLOOKUP($F$3,$BA$13:$IV$18,39,FALSE)) -> 30 | X16: =IF(VLOOKUP($F$3,$BA$13:$IV$18,40,FALSE)<=0,"",VLOOKUP($F$3,$BA$13:$IV$18,40,FALSE)) -> Mmv | Z16: =IF(VLOOKUP($F$3,$BA$13:$IV$18,41,FALSE)<=0,"",VLOOKUP($F$3,$BA$13:$IV$18,41,FALSE)) ->  | AA16: =IF(VLOOKUP($F$3,$BA$13:$IV$18,63,FALSE)<=0,"",VLOOKUP($F$3,$BA$13:$IV$18,63,FALSE)) -> X | AB16: =IF(VLOOKUP($F$3,$BA$13:$IV$18,69,FALSE)<=0,"",VLOOKUP($F$3,$BA$13:$IV$18,69,FALSE)) ->  | AC16: =IF(VLOOKUP($F$3,$BA$13:$IV$18,75,FALSE)<=0,"",VLOOKUP($F$3,$BA$13:$IV$18,75,FALSE)) -> X | AD16: =IF(VLOOKUP($F$3,$BA$13:$IV$18,81,FALSE)<=0,"",VLOOKUP($F$3,$BA$13:$IV$18,81,FALSE)) ->  | BA16: Z/HS | BB16: Z | BC16: Haustür | BD16: 1 | BE16: 3 | BF16: 1405 | BG16: 50 | BH16: 30 | BI16: Mmv | BJ16: 4 | BK16: HS T | BM16: Z | BO16: 1 | BP16: Wohnung 1 | BQ16: 1 | BR16: 3 | BS16: 1463 | BT16: 40 | BU16: 40 | BV16: Mmv | BX16: 2 | BY16: Wohnung 2 | BZ16: 1 | CA16: 3 | CB16: 1463 | CC16: 30 | CD16: 50 | CE16: Mmv | CG16: 3 | CH16: Heizungsraum | CI16: 1 | CK16: 1400 | CL16: 30 | CM16: 40 | CN16: Mmv | CP16: Z | CQ16: Kellertür | CR16: 1 | CS16: 3 | CT16: 1400 | CU16: 30 | CV16: 30 | CW16: Mmv | DH16: X | DK16: X | DL16: X | DT16: Z | DU16: I | DV16: I | DW16: I | DX16: Z
D17: =IF(VLOOKUP($F$3,$BA$13:$IV$18,42,FALSE)<=0,"",VLOOKUP($F$3,$BA$13:$IV$18,42,FALSE)) -> 5 | H17: =IF(VLOOKUP($F$3,$BA$13:$IV$18,43,FALSE)<=0,"",VLOOKUP($F$3,$BA$13:$IV$18,43,FALSE)) -> Verkauf | J17: 1 | L17: 1 | N17: =IF(VLOOKUP($F$3,$BA$13:$IV$18,44,FALSE)<=0,"",VLOOKUP($F$3,$BA$13:$IV$18,44,FALSE)) -> 1 | P17: =IF(VLOOKUP($F$3,$BA$13:$IV$18,45,FALSE)<=0,"",VLOOKUP($F$3,$BA$13:$IV$18,45,FALSE)) -> 3 | R17: =IF(VLOOKUP($F$3,$BA$13:$IV$18,46,FALSE)<=0,"",VLOOKUP($F$3,$BA$13:$IV$18,46,FALSE)) -> 1400 | T17: =IF(VLOOKUP($F$3,$BA$13:$IV$18,47,FALSE)<=0,"",VLOOKUP($F$3,$BA$13:$IV$18,47,FALSE)) -> 30 | V17: =IF(VLOOKUP($F$3,$BA$13:$IV$18,48,FALSE)<=0,"",VLOOKUP($F$3,$BA$13:$IV$18,48,FALSE)) -> 30 | X17: =IF(VLOOKUP($F$3,$BA$13:$IV$18,49,FALSE)<=0,"",VLOOKUP($F$3,$BA$13:$IV$18,49,FALSE)) -> Mpol | Z17: =IF(VLOOKUP($F$3,$BA$13:$IV$18,50,FALSE)<=0,"",VLOOKUP($F$3,$BA$13:$IV$18,50,FALSE)) ->  | AA17: =IF(VLOOKUP($F$3,$BA$13:$IV$18,64,FALSE)<=0,"",VLOOKUP($F$3,$BA$13:$IV$18,64,FALSE)) -> X | AB17: =IF(VLOOKUP($F$3,$BA$13:$IV$18,70,FALSE)<=0,"",VLOOKUP($F$3,$BA$13:$IV$18,70,FALSE)) -> X | AC17: =IF(VLOOKUP($F$3,$BA$13:$IV$18,76,FALSE)<=0,"",VLOOKUP($F$3,$BA$13:$IV$18,76,FALSE)) ->  | AD17: =IF(VLOOKUP($F$3,$BA$13:$IV$18,82,FALSE)<=0,"",VLOOKUP($F$3,$BA$13:$IV$18,82,FALSE)) -> X | BA17: Z | BB17: Z | BC17: Haustür | BD17: 1 | BE17: 3 | BF17: 1400 | BG17: 40 | BH17: 40 | BI17: Mmv | BK17: Z | BM17: 3 | BO17: 1 | BP17: Wohnung 1 | BQ17: 1 | BR17: 3 | BS17: 1463 | BT17: 30 | BU17: 50 | BV17: Mmv | BX17: 2 | BY17: Wohnung 2 | BZ17: 1 | CA17: 3 | CB17: 1463 | CC17: 40 | CD17: 40 | CE17: Mmv | CG17: 3 | CH17: Heizungsraum | CI17: 1 | CJ17: 3 | CK17: 1400 | CL17: 30 | CM17: 30 | CN17: Mmv | CP17: Z | CQ17: Kellertür | CR17: 2 | CT17: 1400 | CU17: 30 | CV17: 40 | CW17: Mmv | DH17: Z | DI17: I | DJ17: I | DK17: I | DL17: Z | DU17: I | DW17: M
D18: =IF(VLOOKUP($F$3,$BA$13:$IV$18,51,FALSE)<=0,"",VLOOKUP($F$3,$BA$13:$IV$18,51,FALSE)) -> 6 | H18: =IF(VLOOKUP($F$3,$BA$13:$IV$18,52,FALSE)<=0,"",VLOOKUP($F$3,$BA$13:$IV$18,52,FALSE)) -> Einkauf | J18: 1 | L18: 1 | N18: =IF(VLOOKUP($F$3,$BA$13:$IV$18,53,FALSE)<=0,"",VLOOKUP($F$3,$BA$13:$IV$18,53,FALSE)) -> 1 | P18: =IF(VLOOKUP($F$3,$BA$13:$IV$18,54,FALSE)<=0,"",VLOOKUP($F$3,$BA$13:$IV$18,54,FALSE)) -> 3 | R18: =IF(VLOOKUP($F$3,$BA$13:$IV$18,55,FALSE)<=0,"",VLOOKUP($F$3,$BA$13:$IV$18,55,FALSE)) -> 1405 | T18: =IF(VLOOKUP($F$3,$BA$13:$IV$18,56,FALSE)<=0,"",VLOOKUP($F$3,$BA$13:$IV$18,56,FALSE)) -> 30 | V18: =IF(VLOOKUP($F$3,$BA$13:$IV$18,57,FALSE)<=0,"",VLOOKUP($F$3,$BA$13:$IV$18,57,FALSE)) -> 40 | X18: =IF(VLOOKUP($F$3,$BA$13:$IV$18,58,FALSE)<=0,"",VLOOKUP($F$3,$BA$13:$IV$18,58,FALSE)) -> Mmv | Z18: =IF(VLOOKUP($F$3,$BA$13:$IV$18,59,FALSE)<=0,"",VLOOKUP($F$3,$BA$13:$IV$18,59,FALSE)) -> 5 | AA18: =IF(VLOOKUP($F$3,$BA$13:$IV$18,65,FALSE)<=0,"",VLOOKUP($F$3,$BA$13:$IV$18,65,FALSE)) -> X | AB18: =IF(VLOOKUP($F$3,$BA$13:$IV$18,71,FALSE)<=0,"",VLOOKUP($F$3,$BA$13:$IV$18,71,FALSE)) -> X | AC18: =IF(VLOOKUP($F$3,$BA$13:$IV$18,77,FALSE)<=0,"",VLOOKUP($F$3,$BA$13:$IV$18,77,FALSE)) ->  | AD18: =IF(VLOOKUP($F$3,$BA$13:$IV$18,83,FALSE)<=0,"",VLOOKUP($F$3,$BA$13:$IV$18,83,FALSE)) -> X | BA18: SP | BB18: 1 | BC18: Haustür | BD18: 1 | BE18: 3 | BF18: 1400 | BG18: 30 | BH18: 30 | BI18: Mmv | BO18: 1 | BP18: Wohnung | BQ18: 1 | BR18: 3 | BS18: 1463 | BT18: 30 | BU18: 30 | BV18: Mmv | BX18: 1 | BY18: Garage | BZ18: 1 | CB18: 1410 | CD18: 30 | CE18: Mmv

Sheet Schließplan
A1: GHS
A2: HS | F2: Fachhändler: | M2: Anzahl
A3: HS/Z
A4: Z/HS
A5: Z | B5: Anlagenart: | D5: GHS | M5: rdnete Schlüssel
A6: SP | B6: System: | D6: TH6
A7: TH6 | B7: Kunde:
A8: 2VE
A9: 3VE
A10: CARAT P1 | B10: Kom.:
A11: CARAT P3 | B11: Datum: | M11: Übergeo
A12: Standard | B12: WILKA - VORSPRUNG DURCH QUALITÄT | F12: .
A13: HSR | B13: Position | C13: Schließungs- nummer | D13: Türnummer | E13: Raumbezeichnung | F13: Stückzahl | H13: Artikel | J13: Länge | L13: Färbung
A14: STR | F14: Zylinder | G14: Schlüssel | I14: Dornmaß | J14: A Aussen | K14: B Innen | M14: ZAS
A15: CARAT
A3000: =VLOOKUP($D$6,Mechanisch!$A$4:$BQ$13,2,FALSE) -> 1399
A3001: =VLOOKUP($D$6,Mechanisch!$A$4:$BQ$13,3,FALSE) -> 1400
A3002: =VLOOKUP($D$6,Mechanisch!$A$4:$BQ$13,4,FALSE) -> 1463
A3003: =VLOOKUP($D$6,Mechanisch!$A$4:$BQ$13,5,FALSE) -> 1408
A3004: =IF(VLOOKUP($D$6,Mechanisch!$A$4:$BQ$13,6,FALSE)=0,"",VLOOKUP($D$6,Mechanisch!$A$4:$BQ$13,6,FALSE)) -> 1478
A3005: =VLOOKUP($D$6,Mechanisch!$A$4:$BQ$13,7,FALSE) -> 1479
A3006: =VLOOKUP($D$6,Mechanisch!$A$4:$BQ$13,8,FALSE) -> 1480
A3007: =VLOOKUP($D$6,Mechanisch!$A$4:$BQ$13,9,FALSE) -> 1481
A3008: =VLOOKUP($D$6,Mechanisch!$A$4:$BQ$13,10,FALSE) -> 1483
A3009: =VLOOKUP($D$6,Mechanisch!$A$4:$BQ$13,11,FALSE) -> 1488
A3010: =VLOOKUP($D$6,Mechanisch!$A$4:$BQ$13,12,FALSE) -> 1489
A3011: =VLOOKUP($D$6,Mechanisch!$A$4:$BQ$13,13,FALSE) -> 1405
A3012: =VLOOKUP($D$6,Mechanisch!$A$4:$BQ$13,14,FALSE) -> 1406
A3013: =VLOOKUP($D$6,Mechanisch!$A$4:$BQ$13,15,FALSE) -> 1407
A3014: =VLOOKUP($D$6,Mechanisch!$A$4:$BQ$13,16,FALSE) -> 1484
A3015: =VLOOKUP($D$6,Mechanisch!$A$4:$BQ$13,17,FALSE) -> 1474
A3016: =VLOOKUP($D$6,Mechanisch!$A$4:$BQ$13,18,FALSE) -> 1475
A3017: =VLOOKUP($D$6,Mechanisch!$A$4:$BQ$13,19,FALSE) -> 1312
A3018: =VLOOKUP($D$6,Mechanisch!$A$4:$BQ$13,20,FALSE) -> 1319
A3019: =VLOOKUP($D$6,Mechanisch!$A$4:$BQ$13,21,FALSE) -> 1398
A3020: =VLOOKUP($D$6,Mechanisch!$A$4:$BQ$13,22,FALSE) -> 1410
A3021: =VLOOKUP($D$6,Mechanisch!$A$4:$BQ$13,23,FALSE) -> 1415
A3022: =VLOOKUP($D$6,Mechanisch!$A$4:$BQ$13,24,FALSE) -> 0
A3023: =VLOOKUP($D$6,Mechanisch!$A$4:$BQ$13,25,FALSE) -> 0
A3024: =VLOOKUP($D$6,Mechanisch!$A$4:$BQ$13,26,FALSE) -> 0
A3025: =VLOOKUP($D$6,Mechanisch!$A$4:$BQ$13,27,FALSE) -> 0
A3026: =VLOOKUP($D$6,Mechanisch!$A$4:$BQ$13,28,FALSE) -> B400
A3027: =VLOOKUP($D$6,Mechanisch!$A$4:$BQ$13,29,FALSE) -> B405
A3028: =VLOOKUP($D$6,Mechanisch!$A$4:$BQ$13,30,FALSE) -> B410
A3029: =VLOOKUP($D$6,Mechanisch!$A$4:$BQ$13,31,FALSE) -> B463
A3030: =VLOOKUP($D$6,Mechanisch!$A$4:$BQ$13,32,FALSE) -> K400
A3031: =VLOOKUP($D$6,Mechanisch!$A$4:$BQ$13,33,FALSE) -> K405
A3032: =VLOOKUP($D$6,Mechanisch!$A$4:$BQ$13,34,FALSE) -> K410
A3033: =VLOOKUP($D$6,Mechanisch!$A$4:$BQ$13,35,FALSE) -> K463
A3034: =VLOOKUP($D$6,Mechanisch!$A$4:$BQ$13,36,FALSE) -> 2201
A3035: =VLOOKUP($D$6,Mechanisch!$A$4:$BQ$13,37,FALSE) -> 1250
A3036: =VLOOKUP($D$6,Mechanisch!$A$4:$BQ$13,38,FALSE) -> 1251
A3037: =VLOOKUP($D$6,Mechanisch!$A$4:$BQ$13,39,FALSE) -> 1253
A3038: =VLOOKUP($D$6,Mechanisch!$A$4:$BQ$13,40,FALSE) -> 500
A3039: =VLOOKUP($D$6,Mechanisch!$A$4:$BQ$13,41,FALSE) -> 500F
A3040: =VLOOKUP($D$6,Mechanisch!$A$4:$BQ$13,42,FALSE) -> 501
A3041: =VLOOKUP($D$6,Mechanisch!$A$4:$BQ$13,43,FALSE) -> 503
A3042: =VLOOKUP($D$6,Mechanisch!$A$4:$BQ$13,44,FALSE) -> 560
A3043: =VLOOKUP($D$6,Mechanisch!$A$4:$BQ$13,45,FALSE) -> 586
A3044: =VLOOKUP($D$6,Mechanisch!$A$4:$BQ$13,46,FALSE) -> 587
A3045: =VLOOKUP($D$6,Mechanisch!$A$4:$BQ$13,47,FALSE) -> 2530
A3046: =VLOOKUP($D$6,Mechanisch!$A$4:$BQ$13,48,FALSE) -> 2532
A3047: =VLOOKUP($D$6,Mechanisch!$A$4:$BQ$13,49,FALSE) -> 2534
A3048: =VLOOKUP($D$6,Mechanisch!$A$4:$BQ$13,50,FALSE) -> 2613
A3049: =VLOOKUP($D$6,Mechanisch!$A$4:$BQ$13,51,FALSE) -> 593
A3050: =VLOOKUP($D$6,Mechanisch!$A$4:$BQ$13,52,FALSE) -> 598
A3051: =VLOOKUP($D$6,Mechanisch!$A$4:$BQ$13,53,FALSE) -> 692
A3052: =VLOOKUP($D$6,Mechanisch!$A$4:$BQ$13,54,FALSE) -> 550
A3053: =VLOOKUP($D$6,Mechanisch!$A$4:$BQ$13,55,FALSE) -> 546
A3054: =VLOOKUP($D$6,Mechanisch!$A$4:$BQ$13,56,FALSE) -> 548
A3055: =VLOOKUP($D$6,Mechanisch!$A$4:$BQ$13,57,FALSE) -> 549
A3056: =VLOOKUP($D$6,Mechanisch!$A$4:$BQ$13,58,FALSE) -> 592
A3057: =VLOOKUP($D$6,Mechanisch!$A$4:$BQ$13,59,FALSE) -> 520
A3058: =VLOOKUP($D$6,Mechanisch!$A$4:$BQ$13,60,FALSE) -> 530
A3059: =VLOOKUP($D$6,Mechanisch!$A$4:$BQ$13,61,FALSE) -> 1304
A3060: =VLOOKUP($D$6,Mechanisch!$A$4:$BQ$13,62,FALSE) -> 1307
A3061: =VLOOKUP($D$6,Mechanisch!$A$4:$BQ$13,63,FALSE) -> 1380
A3062: =VLOOKUP($D$6,Mechanisch!$A$4:$BQ$13,64,FALSE) -> 1401
A3063: =VLOOKUP($D$6,Mechanisch!$A$4:$BQ$13,65,FALSE) -> 1413
A3064: =VLOOKUP($D$6,Mechanisch!$A$4:$BQ$13,66,FALSE) -> 1477
A3065: =VLOOKUP($D$6,Mechanisch!$A$4:$BQ$13,67,FALSE) -> 1482
A3066: =VLOOKUP($D$6,Mechanisch!$A$4:$BQ$13,68,FALSE) -> 1486
A3067: =VLOOKUP($D$6,Mechanisch!$A$4:$BQ$13,69,FALSE) -> 1487
A3068: =VLOOKUP($D$6,Elektronik!$A$4:$BG$13,2,FALSE) -> E204
A3069: =VLOOKUP($D$6,Elektronik!$A$4:$BG$13,3,FALSE) -> E203
A3070: =VLOOKUP($D$6,Elektronik!$A$4:$BG$13,4,FALSE) -> E207
A3071: =VLOOKUP($D$6,Elektronik!$A$4:$BG$13,5,FALSE) -> E213
A3072: =VLOOKUP($D$6,Elektronik!$A$4:$BG$13,6,FALSE) -> E214
A3073: =VLOOKUP($D$6,Elektronik!$A$4:$BG$13,7,FALSE) -> E215
A3074: =VLOOKUP($D$6,Elektronik!$A$4:$BG$13,8,FALSE) -> E831
A3075: =VLOOKUP($D$6,Elektronik!$A$4:$BG$13,9,FALSE) -> E832
A3076: =VLOOKUP($D$6,Elektronik!$A$4:$BG$13,10,FALSE) -> E820
A3077: =VLOOKUP($D$6,Elektronik!$A$4:$BG$13,11,FALSE) -> E821
A3078: =VLOOKUP($D$6,Elektronik!$A$4:$BG$13,12,FALSE) -> E931
A3079: =VLOOKUP($D$6,Elektronik!$A$4:$BG$13,13,FALSE) -> E932
A3080: =VLOOKUP($D$6,Elektronik!$A$4:$BG$13,14,FALSE) -> E935
A3081: =VLOOKUP($D$6,Elektronik!$A$4:$BG$13,15,FALSE) -> E936
A3082: =VLOOKUP($D$6,Elektronik!$A$4:$BG$13,16,FALSE) -> E920
A3083: =VLOOKUP($D$6,Elektronik!$A$4:$BG$13,17,FALSE) -> E821
A3084: =VLOOKUP($D$6,Elektronik!$A$4:$BG$13,18,FALSE) -> E881
A3085: =VLOOKUP($D$6,Elektronik!$A$4:$BG$13,19,FALSE) -> E837
A3086: =VLOOKUP($D$6,Elektronik!$A$4:$BG$13,20,FALSE) -> E850
A3087: =VLOOKUP($D$6,Elektronik!$A$4:$BG$13,21,FALSE) -> E855
A3088: =VLOOKUP($D$6,Elektronik!$A$4:$BG$13,22,FALSE) -> E950
A3089: =VLOOKUP($D$6,Elektronik!$A$4:$BG$13,23,FALSE) -> E895
A3090: =VLOOKUP($D$6,Elektronik!$A$4:$BG$13,24,FALSE) -> E871
A3091: =VLOOKUP($D$6,Elektronik!$A$4:$BG$13,25,FALSE) -> SE60
A3092: =VLOOKUP($D$6,Elektronik!$A$4:$BG$13,26,FALSE) -> E890
A3093: =VLOOKUP($D$6,Elektronik!$A$4:$BG$13,27,FALSE) -> E891
A3094: =VLOOKUP($D$6,Elektronik!$A$4:$BG$13,28,FALSE) -> E892
A3095: =VLOOKUP($D$6,Elektronik!$A$4:$BG$13,29,FALSE) -> E894
A3096: =VLOOKUP($D$6,Elektronik!$A$4:$BG$13,30,FALSE) -> E896
A3097: =VLOOKUP($D$6,Elektronik!$A$4:$BG$13,31,FALSE) -> E898
A3098: =VLOOKUP($D$6,Elektronik!$A$4:$BG$13,32,FALSE) -> E624ST
A3099: =VLOOKUP($D$6,Elektronik!$A$4:$BG$13,33,FALSE) -> E624UP
A3100: =VLOOKUP($D$6,Elektronik!$A$4:$BG$13,34,FALSE) -> E680
A3101: =VLOOKUP($D$6,Elektronik!$A$4:$BG$13,35,FALSE) -> M550
A3102: =VLOOKUP($D$6,Elektronik!$A$4:$BG$13,36,FALSE) -> M551
A3103: =VLOOKUP($D$6,Elektronik!$A$4:$BG$13,37,FALSE) -> M552
A3104: =VLOOKUP($D$6,Elektronik!$A$4:$BG$13,38,FALSE) -> M553
A3105: =VLOOKUP($D$6,Elektronik!$A$4:$BG$13,39,FALSE) -> M554
A3106: =VLOOKUP($D$6,Elektronik!$A$4:$BG$13,40,FALSE) -> M555
A3107: =VLOOKUP($D$6,Elektronik!$A$4:$BG$13,41,FALSE) -> M556
A3108: =VLOOKUP($D$6,Elektronik!$A$4:$BG$13,42,FALSE) -> M557
A3109: =VLOOKUP($D$6,Elektronik!$A$4:$BG$13,43,FALSE) -> M558
A3110: =VLOOKUP($D$6,Elektronik!$A$4:$BG$13,44,FALSE) -> M540
A3111: =VLOOKUP($D$6,Elektronik!$A$4:$BG$13,45,FALSE) -> M541
A3112: =VLOOKUP($D$6,Elektronik!$A$4:$BG$13,46,FALSE) -> 0
A3113: =VLOOKUP($D$6,Elektronik!$A$4:$BG$13,47,FALSE) -> 0
A3114: =VLOOKUP($D$6,Elektronik!$A$4:$BG$13,48,FALSE) -> 0
A3115: =VLOOKUP($D$6,Elektronik!$A$4:$BG$13,49,FALSE) -> 0
A3116: =VLOOKUP($D$6,Elektronik!$A$4:$BG$13,50,FALSE) -> 0
A3117: =VLOOKUP($D$6,Elektronik!$A$4:$BG$13,51,FALSE) -> 0
A3118: =VLOOKUP($D$6,Elektronik!$A$4:$BG$13,52,FALSE) -> 0
A3119: =VLOOKUP($D$6,Elektronik!$A$4:$BG$13,53,FALSE) -> 0
A3120: =VLOOKUP($D$6,Elektronik!$A$4:$BG$13,54,FALSE) -> 0
A3121: =VLOOKUP($D$6,Elektronik!$A$4:$BG$13,55,FALSE) -> 0
A3122: =VLOOKUP($D$6,Elektronik!$A$4:$BG$13,56,FALSE) -> 0
A3123: =VLOOKUP($D$6,Elektronik!$A$4:$BG$13,57,FALSE) -> 0
A3124: =VLOOKUP($D$6,Elektronik!$A$4:$BG$13,58,FALSE) -> 0
A3125: =VLOOKUP($D$6,Elektronik!$A$4:$BG$13,59,FALSE) -> 0
A3126: =VLOOKUP($D$6,Elektronik!$A$4:$BG$13,60,FALSE) -> 
A3127: =VLOOKUP($D$6,Elektronik!$A$4:$BG$13,61,FALSE) -> 
A3128: =VLOOKUP($D$6,Elektronik!$A$4:$BG$13,62,FALSE) -> 
A3129: =VLOOKUP($D$6,Elektronik!$A$4:$BG$13,63,FALSE) -> 

Sheet Artikelliste
A1: Schließanlagen-Artikel
A3: Schließanlagensysteme | K3: Beschreibung
A5: Doppelzylinder
C6: 1399 | D6: 1399 | K6: Profildoppelzylinder mit Doppelfunktion, Grundlänge 30/30, Messing matt vernickelt, 3 Neusilberschlüssel
A7: 1400 | B7: 1400 | C7: 1400 | D7: 1400 | E7: 1400 | G7: 3600 | H7: 3600 | I7: 3600 | J7: 2122 | K7: Profildoppelzylinder, Grundlänge 30/30, Messing matt vernickelt, 3 Neusilberschlüssel
A8: 1463 | B8: 1463 | C8: 1463 | D8: 1463 | E8: 1463 | G8: 3663 | H8: 3663 | I8: 3663 | J8: 2163 | K8: Profildoppelzylinder, mit Not- und Gefahrenfunktion, Grundlänge 30/30, Messing matt vernickelt, 3 Neusilberschlüssel
A9: 1408 | B9: 1408 | C9: 1408 | D9: 1408 | E9: 1408 | G9: 3608 | H9: 3608 | I9: 3608 | J9: 2108 | K9: Profildoppelzylinder, mit Freilauffunktion für Getriebeschlösser (FZG), Grundlänge 30/30, Messing matt vernickelt, 3 Neusilberschlüssel
A10: 1478 | C10: 1478 | D10: 1478 | J10: 2178 | K10: Profildoppelzylinder schließbar nur mit beidseitig steckenden verschiedenen Schlüsseln, Grundlänge 30/30, Messing matt vernickelt, 3 Neusilberschlüssel
A11: 1479 | C11: 1479 | D11: 1479 | J11: 2179 | K11: Profildoppelzylinder, mit Gefahrenschlüssel-einrichtung, Grundlänge 30/30, Messing matt vernickelt, 3 Neusilberschlüssel
A12: 1480 | B12: 1480 | C12: 1480 | D12: 1480 | E12: 1480 | G12: 3680 | H12: 3680 | I12: 3680 | J12: 2180 | K12: Profildoppelzylinder, Grundlänge 26/26, einseitig blind, Messing matt vernickelt, 3 Neusilberschlüssel
A13: 1481 | B13: 1481 | C13: 1481 | D13: 1481 | E13: 1481 | G13: 3681 | H13: 3681 | I13: 3681 | J13: 2181 | K13: Profildoppelzylinder, Grundlänge 26/30, Messing matt vernickelt, 3 Neusilberschlüssel
A14: 1483 | B14: 1483 | C14: 1483 | D14: 1483 | E14: 1483 | G14: 3683 | H14: 3683 | I14: 3683 | J14: 2183 | K14: Profildoppelzylinder, mit Not- und Gefahrenfunktion, Grundlänge 26/35, Messing matt vernickelt, 3 Neusilberschlüssel
A15: 1488 | B15: 1488 | C15: 1488 | D15: 1488 | E15: 1488 | G15: 3688 | H15: 3688 | I15: 3688 | J15: 2188 | K15: Profilkurzzylinder, Grundlänge 26/26, Messing matt vernickelt, 3 Neusilberschlüssel
A16: 1489 | B16: 1489 | C16: 1489 | D16: 1489 | G16: 3689 | H16: 3689 | J16: 2189 | K16: Profildoppelzylinder, Grundlänge 30/30, Messing matt vernickelt, 3 Neusilberschlüssel, eine Seite Notöffnung, andere Seite Schließfunktion
A17: Knaufzylinder
A18: 1405 | B18: 1405 | C18: 1405 | D18: 1405 | E18: 1405 | G18: 3605 | H18: 3605 | I18: 3605 | J18: 2105 | K18: Profilknaufzylinder, Grundlänge 30/30, Messing matt vernickelt, 3 Neusilberschlüssel
A19: 1406 | B19: 1406 | C19: 1406 | D19: 1406 | E19: 1406 | G19: 3606 | H19: 3606 | I19: 3606 | J19: 3606 | K19: Profilknaufzylinder, mit Freilauffunktion für Getriebeschlösser (FZG), Grundlänge 30/30, Messing matt vernickelt, 3 Neusilberschlüssel
A20: 1407 | B20: 1407 | C20: 1407 | D20: 1407 | E20: 1407 | G20: 3607 | H20: 3607 | I20: 3607 | J20: 2107 | K20: Profilknaufzylinder, Grundlänge 26/26, Messing matt vernickelt, 3 Neusilberschlüssel
A21: 1484 | B21: 1484 | C21: 1484 | D21: 1484 | E21: 1484 | G21: 3684 | H21: 3684 | I21: 3684 | J21: 2184 | K21: Profilknaufzylinder, Grundlänge 26/30, Messing matt vernickelt, 3 Neusilberschlüssel
A22: 1474 | B22: 1474 | C22: 1474 | D22: 1474 | E22: 1474 | H22: 3674 | I22: 3674 | J22: 2174 | K22: Anti-Panik-Profilknaufzylinder, Grundlänge 30/40, für den Einsatz in Anti-Panik-Schlössern, Messing matt vernickelt, 3 Neusilberschlüssel
A23: 1475 | C23: 1475 | D23: 1475 | G23: 3675 | H23: 3675 | K23: Profilknaufzylinder, mit Anti-Amok-Funktion, Grundlänge 30/30, Messing matt vernickelt, 3 Neusilberschlüssel
A24: Halbzylinder
A25: 1312 | B25: 1312 | C25: 1312 | D25: 1312 | E25: 1312 | G25: 3612 | H25: 3612 | I25: 3612 | J25: 2112 | K25: Profilhalbzylinder, mit frei drehbarem Schließbart, Grundlänge 00/30, Messing matt vernickel, 3 Neusilberschlüssel
A26: 1319 | B26: 1319 | C26: 1319 | D26: 1319 | E26: 1319 | G26: 3619 | H26: 3619 | I26: 3619 | J26: 2119 | K26: Profilhalbzylinder, mit zwei Gewindebohrungen M4 auf der Rückseite, Grundlänge 00/30, Messing matt vernickelt, 3 Neusilberschlüssel
C27: 1398 | D27: 1398 | K27: Profilhalbzylinder mit Doppelfunktion, Grundlänge 00/30, Messing matt vernickelt, 3 Neusilberschlüssel
A28: 1410 | B28: 1410 | C28: 1410 | D28: 1410 | E28: 1410 | G28: 3610 | H28: 3610 | I28: 3610 | J28: 2110 | K28: Profilhalbzylinder, Grundlänge 00/26, Messing matt vernickelt, 3 Neusilberschlüssel
A29: 1415 | B29: 1415 | C29: 1415 | D29: 1415 | E29: 1415 | G29: 3615 | H29: 3615 | I29: 3615 | J29: 2115 | K29: Profilhalbzylinder, mit Freilauf für Schaltungen, Grundlänge 00/30, Messing matt vernickelt, 3 Neusilberschlüssel
A30: Zylinder gemäß den Richtlinien des (nur STR, HSR nicht möglich)
D31: B400 | H31: B300 | K31: Profildoppelzylinder, Grundlänge 30/30, Messing matt vernickelt, 3 Neusilberschlüssel, Ausführung VdS BZ
D32: B405 | H32: B305 | K32: Profilknaufzylinder, Grundlänge 30/30, Messing matt vernickelt, 3 Neusilberschlüssel, Ausführung VdS BZ
D33: B410 | H33: B310 | K33: Profilhalbzylinder, Grundlänge 00/30, Messing matt vernickelt, 3 Neusilberschlüssel, Ausführung VdS BZ
D34: B463 | H34: B363 | K34: Profildoppelzylinder, mit Not- und Gefahrenfunktion, Grundlänge 30/30, Messing matt vernickelt, 3 Neusilberschlüssel, Ausführung VdS BZ
A35: Zylinder gemäß den Richtlinien des (nur STR, HSR nicht möglich)
C36: K400 | D36: K400 | E36: K400 | H36: K360 | I36: K360 | K36: Profildoppelzylinder, Grundlänge 30/30, Messing matt vernickelt, 3 Neusilberschlüssel, ABH SKG einseitig
C37: K405 | D37: K405 | E37: K405 | H37: K365 | I37: K365 | K37: Profilknaufzylinder, Grundlänge 30/30, Messing matt vernickelt, 3 Neusilberschlüssel, ABH SKG einseitig
C38: K410 | D38: K410 | E38: K410 | H38: K361 | I38: K361 | K38: Profilhalbzylinder, Grundlänge 00/26, Messing matt vernickelt, 3 Neusilberschlüssel, ABH SKG einseitig
C39: K463 | D39: K463 | E39: K463 | H39: K363 | I39: K363 | K39: Profildoppelzylinder, mit Not- und Gefahrenfunktion, Grundlänge 30/30, Messing matt vernickelt, 3 Neusilberschlüssel, ABH SKG einseitig
A40: Vorhangschloß
A41: 2201 | B41: 2201 | C41: 2201 | D41: 2201 | E41: 2201 | G41: 3601 | H41: 3601 | I41: 3601 | J41: 2101 | K41: Schweres Vorhangschloß, Schloßkörper Messing gebürstet, 30er oder 80er Niro-Bügel, 3 Neusilberschlüssel
A42: Hebelzylinder
A43: 1250 | B43: 1250 | C43: 1250 | D43: 1250 | E43: 1250 | G43: 3650 | H43: 3650 | I43: 3650 | J43: 2150 | K43: Zylinder-Hebelschloß, Messing matt vernickelt, 3 Neusilberschlüssel
A44: 1251 | B44: 1251 | C44: 1251 | D44: 1251 | E44: 1251 | G44: 3651 | H44: 3651 | I44: 3651 | J44: 2151 | K44: Zylinder-Hebelschloß, Schlüssel im offenem bzw. geschlossenem Zustand abziehbar, Messing matt vernickelt, 3 Neusilberschlüssel
A45: 1253 | B45: 1253 | C45: 1253 | D45: 1253 | E45: 1253 | G45: 3657 | H45: 3657 | I45: 3657 | J45: 2157 | K45: Zylinder-Hebelschloß, Messing matt vernickelt, 3 Neusilberschlüssel, für Renz-Briefkästen, mit Hebel 50 62 059 und Befestigungsrundmutter
A46: Rundzylinder
A47: 500 | B47: 500 | C47: 500 | D47: 500 | E47: 500 | G47: 3652 | H47: 3652 | I47: 3652 | J47: 2152 | K47: Aussenzylinder für Kastenschlösser
A48: 500F | B48: 500F | C48: 500F | D48: 500F | G48: 3632 | H48: 3632 | I48: 3632 | J48: 2132 | K48: Rundzylinder Durchmesser 32mm für Garagentore
A49: 501 | B49: 501 | C49: 501 | D49: 501 | J49: 2155 | K49: Aussenzylinder für Kastenschloss Nr. 2611
A50: 503 | B50: 503 | C50: 503 | D50: 503 | G50: 3603 | H50: 3603 | J50: 2103 | K50: Aussenzylinder für Kastenschloss Nr. 2621
A51: 560 | B51: 560 | C51: 560 | D51: 560 | G51: 3660 | H51: 3660 | J51: 2160 | K51: Kontaktzylinder für Aufzüge
A52: 586 | B52: 586 | C52: 586 | D52: 586 | J52: 2154 | K52: Rundzylinder Durchmesser 30mm für Garagentore aus Stahl
A53: 587 | B53: 587 | C53: 587 | D53: 587 | J53: 2153 | K53: Rundzylinder Durchmesser 30mm für Garagentore aus Holz
A54: 2530 | B54: 2530 | C54: 2530 | D54: 2530 | G54: 3616 | H54: 3616 | J54: 2116 | K54: Aussen- und Innenzylinder für Zusatzschloss Nr. 2516
A55: 2532 | B55: 2532 | C55: 2532 | D55: 2532 | G55: 3624 | H55: 3624 | J55: 2124 | K55: Aussen- und Innenzylinder für Kastenschloss Nr. 542 und Nr. 2524
A56: 2534 | B56: 2534 | C56: 2534 | D56: 2534 | G56: 3656 | H56: 3656 | J56: 2156 | K56: Aussen- und Innenzylinder für Nr. 2616
A57: 2613 | B57: 2613 | C57: 2613 | D57: 2613 | G57: 3613 | H57: 3613 | J57: 2113 | K57: Aussen- und Innenzylinder für Nr. 2626
A58: Zylinder für Möbelschlösser
A59: 593 | B59: 593 | C59: 593 | D59: 593 | H59: 3693 | J59: 2193 | K59: Möbelschloss-Rundzylinder, Durchmesser 23mm, für Nr. 592
A60: 598 | B60: 598 | C60: 598 | D60: 598 | H60: 3694 | J60: 2198 | K60: Zylinder für Durchsteckmontage, nur verwendbar für Nr. 546, 548 und 549
A61: 692 | B61: 692 | C61: 692 | D61: 692 | H61: 3695 | J61: 2192 | K61: Möbelschloss-Rundzylinder, Durchmesser 30mm, für Nr. 592
A62: 550 | B62: 550 | C62: 550 | D62: 550 | H62: 550 | J62: 550 | K62: Dreh- und verschließbare Olive, mit Zylinder 597, für Nr. 546, 548 und 549
A63: Möbelschlösser und Zubehör
A64: 546 | B64: 546 | C64: 546 | D64: 546 | H64: 546 | J64: 546 | K64: Möbelriegelschloss 40mm Dorn
A65: 548 | B65: 548 | C65: 548 | D65: 548 | H65: 548 | J65: 548 | K65: Drehstangenschloss 40mm Dorn für geteilte Drehstangen
A66: 549 | B66: 549 | C66: 549 | D66: 549 | H66: 549 | J66: 549 | K66: Drehstangenschloss 25mm Dorn für geteilte Drehstangen
A67: 592 | B67: 592 | C67: 592 | D67: 592 | H67: 592 | J67: 592 | K67: Aufliegendes Möbelriegelschloss 25-50mm Dorn
A68: 520 | B68: 520 | C68: 520 | D68: 520 | H68: 520 | J68: 520 | K68: feststehende Olive, matt vernickelt
A69: 530 | B69: 530 | C69: 530 | D69: 530 | H69: 530 | J69: 530 | K69: drehbare Olive, matt vernickelt
A70: Zylinder ohne Schließfunktion
A71: 1304 | B71: 1304 | C71: 1304 | D71: 1304 | E71: 1304 | F71: 1304 | G71: 1304 | H71: 1304 | I71: 1304 | J71: 1304 | K71: Knaufzylinder, beidseitig Knauf, Messing matt vernickelt
A72: 1307 | B72: 1307 | C72: 1307 | D72: 1307 | E72: 1307 | F72: 1307 | G72: 1307 | H72: 1307 | I72: 1307 | J72: 1307 | K72: Knaufzylinder, asymetrisch, beidseitig Knauf, Messing matt vernickelt
A73: 1380 | B73: 1380 | C73: 1380 | D73: 1380 | E73: 1380 | F73: 1380 | G73: 1380 | H73: 1380 | I73: 1380 | J73: 1380 | K73: Knaufzylinder, einseitig Knauf, andere Seite blind, Messing matt vernickelt
A74: 1401 | B74: 1401 | C74: 1401 | D74: 1401 | E74: 1401 | F74: 1401 | G74: 1401 | H74: 1401 | I74: 1401 | J74: 1401 | K74: Profilblindzylinder, Grundlänge 26/26 oder 00/26, Messing matt vernickelt
A75: 1413 | B75: 1413 | C75: 1413 | D75: 1413 | E75: 1413 | F75: 1413 | G75: 1413 | H75: 1413 | I75: 1413 | J75: 1413 | K75: Knaufhalbzylinder, Grundlänge 00/30, Messing matt vernickelt
A76: 1477 | B76: 1477 | C76: 1477 | D76: 1477 | E76: 1477 | F76: 1477 | G76: 1477 | H76: 1477 | I76: 1477 | J76: 1477 | K76: Knaufzylinder mit optischer Verschlussanzeige, Grundlänge 30/30, Messing matt vernickelt
A77: 1482 | B77: 1482 | C77: 1482 | D77: 1482 | E77: 1482 | F77: 1482 | G77: 1482 | H77: 1482 | I77: 1482 | J77: 1482 | K77: Doppelzylinder, Grundlänge 30/30, Messing matt vernickelt, einseitig blind, andere Seite Notöffnung
A78: 1486 | B78: 1486 | C78: 1486 | D78: 1486 | E78: 1486 | F78: 1486 | G78: 1486 | H78: 1486 | I78: 1486 | J78: 1486 | K78: Doppelzylinder, Grundlänge 30/30, Messing matt vernickelt, beidseitig Notöffnung
A79: 1487 | B79: 1487 | C79: 1487 | D79: 1487 | E79: 1487 | F79: 1487 | G79: 1487 | H79: 1487 | I79: 1487 | J79: 1487 | K79: Knaufzylinder, Grundlänge 30/30, Messing matt vernickelt, einseitig Notöffnung, andere Seite Knauf
A80: Zylinderfärbungen | K80: Code (Schließplan Spalte Färbung) | L80: Beschreibung
A81: X | B81: X | C81: X | D81: X | E81: X | F81: X | G81: X | H81: X | I81: X | J81: X | K81: 1 | L81: Messing matt vernickelt (Standard)
A82: X | B82: X | C82: X | D82: X | E82: X | F82: X | G82: X | H82: X | I82: X | J82: X | K82: 3 | L82: Messing poliert
A83: X | B83: X | C83: X | D83: X | E83: X | F83: X | G83: X | H83: X | I83: X | J83: X | K83: 4 | L83: Messing matt gebürstet
A84: X | B84: X | C84: X | D84: X | E84: X | F84: X | G84: X | H84: X | I84: X | J84: X | K84: 5 | L84: Messing brüniert
A85: X | B85: X | C85: X | D85: X | E85: X | F85: X | G85: X | H85: X | I85: X | J85: X | K85: 6 | L85: Messing matt verchromt
A86: X | B86: X | C86: X | D86: X | E86: X | F86: X | G86: X | H86: X | I86: X | J86: X | K86: 7 | L86: Messing poliert verchromt
A87: Zusatzausstattungen für mechanische Schließanlagen (Auszug) | K87: Code (Schließplan Spalte ZAS) | L87: Beschreibung
A88: X | B88: X | C88: X | D88: X | E88: X | G88: X | H88: X | K88: 01 | L88: seewasserbeständige Ausführung
A89: X | B89: X | C89: X | D89: X | E89: X | K89: 03 | L89: verschleissarme Ausführung
A90: X | B90: X | C90: X | D90: X | E90: X | G90: X | H90: X | I90: X | J90: X | K90: 04 | L90: Knauf kurze Seite
A91: X | B91: X | C91: X | D91: X | E91: X | G91: X | H91: X | I91: X | J91: X | K91: 05 | L91: Knauf lange Seite
A92: X | C92: X | K92: 08 | L92: Gefahrenschlüssel kurze Seite
A93: X | C93: X | K93: 09 | L93: Gefahrenschlüssel lange Seite
A94: X | B94: X | C94: X | D94: X | E94: X | K94: 3 | L94: ABH I beidseitig
A95: X | B95: X | C95: X | D95: X | E95: X | J95: X | K95: 4 | L95: ABH III kurze Seite
A96: X | B96: X | C96: X | D96: X | E96: X | J96: X | K96: 5 | L96: ABH III lange Seite
A97: X | B97: X | C97: X | D97: X | E97: X | J97: X | K97: 6 | L97: ABH III beidseitig
A98: X | B98: X | C98: X | D98: X | E98: X | K98: 65 | L98: ABH V beidseitig
A99: X | B99: X | C99: X | D99: X | E99: X | K99: 45 | L99: ABH V kurze Seite
A100: X | B100: X | C100: X | D100: X | E100: X | K100: 55 | L100: ABH V lange Seite
D101: X | E101: X | G101: X | H101: X | I101: X | K101: 77 | L101: SKG-ABH kurze Seite
D102: X | E102: X | G102: X | H102: X | I102: X | K102: 78 | L102: SKG-ABH lange Seite
D103: X | E103: X | G103: X | H103: X | I103: X | K103: 79 | L103: SKG-ABH beidseitig
G104: X | H104: X | I104: X | K104: 81 | L104: ABH IX kurze Seite
G105: X | H105: X | I105: X | K105: 82 | L105: ABH IX lange Seite
G106: X | H106: X | I106: X | K106: 83 | L106: ABH IX beidseitig
G107: X | H107: X | I107: X | K107: 91 | L107: ABH X kurze Seite
G108: X | H108: X | I108: X | K108: 92 | L108: ABH X lange Seite
G109: X | H109: X | I109: X | K109: 93 | L109: ABH X beidseitig
C110: X | K110: 7 | L110: PRO für Halbzylinder und Knaufzylinder
C111: X | K111: 8 | L111: PRO für Doppelzylinder
D112: X | E112: X | G112: X | H112: X | I112: X | K112: A1 | L112: Ziehschutzspange
A113: X | B113: X | C113: X | D113: X | E113: X | G113: X | H113: X | I113: X | J113: X | K113: S2 | L113: Biffar-Schließnase
A114: X | B114: X | C114: X | D114: X | E114: X | G114: X | H114: X | I114: X | J114: X | K114: S3 | L114: Ritzel 10 Zähne (Multilock)
A115: X | B115: X | C115: X | D115: X | E115: X | G115: X | H115: X | I115: X | J115: X | K115: S4 | L115: Ritzel 18 Zähne
A116: elektronische Zylinder, Leser und Beschläge "Serie easy"
A117: E204 | B117: E204 | C117: E204 | D117: E204 | E117: E204 | F117: E204 | G117: E204 | H117: E204 | I117: E204 | J117: E204 | K117: Elektronischer Doppelknaufzylinder, Serie easy2.0, Grundlänge 30/30, Messing matt vernickelt, aussen Elektronik, innen mechanischer Knauf, IP67
A118: E203 | B118: E203 | C118: E203 | D118: E203 | E118: E203 | F118: E203 | G118: E203 | H118: E203 | I118: E203 | J118: E203 | K118: Elektronischer Doppelknaufzylinder, Serie easy2.0, Grundlänge 30/30, Messing matt vernickelt, aussen Elektronik, innen Blindkern, IP67
A119: E207 | B119: E207 | C119: E207 | D119: E207 | E119: E207 | F119: E207 | G119: E207 | H119: E207 | I119: E207 | J119: E207 | K119: Elektronischer Doppelknaufzylinder, Serie easy2.0, Grundlänge 30/30, Messing matt vernickelt, beidseitig Elektronik, IP67
A120: E213 | B120: E213 | C120: E213 | D120: E213 | E120: E213 | F120: E213 | G120: E213 | H120: E213 | I120: E213 | J120: E213 | K120: Elektronischer Halbzylinder, Serie easy2.0, Grundlänge 00/30, Messing matt vernickelt, aussen Elektronik, IP67
A121: E214 | B121: E214 | C121: E214 | D121: E214 | E121: E214 | F121: E214 | G121: E214 | H121: E214 | I121: E214 | J121: E214 | K121: Elektronischer Doppelknaufzylinder, für Anti-Panik-Türen, Serie easy2.0, Grundlänge 30/35, Messing matt vernickelt, aussen Elektronik, innen mechanischer Knauf, IP67
A122: E215 | B122: E215 | C122: E215 | D122: E215 | E122: E215 | F122: E215 | G122: E215 | H122: E215 | I122: E215 | J122: E215 | K122: Elektronischer Doppelknaufzylinder, für Anti-Panik-Türen, Serie easy2.0, Grundlänge 30/35, Messing matt vernickelt, aussen Elektronik, innen Blindkern, IP67
A123: E831 | B123: E831 | C123: E831 | D123: E831 | E123: E831 | F123: E831 | G123: E831 | H123: E831 | I123: E831 | J123: E831 | K123: Elektronikleser, schmale Abdeckkappe
A124: E832 | B124: E832 | C124: E832 | D124: E832 | E124: E832 | F124: E832 | G124: E832 | H124: E832 | I124: E832 | J124: E832 | K124: Elektronikleser, breite Abdeckkappe
A125: E820 | B125: E820 | C125: E820 | D125: E820 | E125: E820 | F125: E820 | G125: E820 | H125: E820 | I125: E820 | J125: E820 | K125: Elektronischer Beschlag
A126: E821 | B126: E821 | C126: E821 | D126: E821 | E126: E821 | F126: E821 | G126: E821 | H126: E821 | I126: E821 | J126: E821 | K126: Elektronischer Beschlag, für den Einsatz in Brand- und Rauchschutztüren.
A127: E931 | B127: E931 | C127: E931 | D127: E931 | E127: E931 | F127: E931 | G127: E931 | H127: E931 | I127: E931 | J127: E931 | K127: Elektronikleser, schmale Abdeckkappe System "elink"
A128: E932 | B128: E932 | C128: E932 | D128: E932 | E128: E932 | F128: E932 | G128: E932 | H128: E932 | I128: E932 | J128: E932 | K128: Elektronikleser, breite Abdeckkappe System "elink"
A129: E935 | B129: E935 | C129: E935 | D129: E935 | E129: E935 | F129: E935 | G129: E935 | H129: E935 | I129: E935 | J129: E935 | K129: Zusatzleser, schmale Abdeckkappe System "elink"
A130: E936 | B130: E936 | C130: E936 | D130: E936 | E130: E936 | F130: E936 | G130: E936 | H130: E936 | I130: E936 | J130: E936 | K130: Zusatzleser, breite Abdeckkappe System "elink"
A131: E920 | B131: E920 | C131: E920 | D131: E920 | E131: E920 | F131: E920 | G131: E920 | H131: E920 | I131: E920 | J131: E920 | K131: Elektronischer Beschlag
A132: E921 | B132: E921 | C132: E921 | D132: E921 | E132: E921 | F132: E921 | G132: E921 | H132: E921 | I132: E921 | J132: E921 | K132: Elektronischer Beschlag, für den Einsatz in Brand- und Rauchschutztüren.
A133: Zubehör elektronische Zylinder, Leser und Beschläge "Serie easy"
A134: E837 | B134: E837 | C134: E837 | D134: E837 | E134: E837 | F134: E837 | G134: E837 | H134: E837 | I134: E837 | J134: E837 | K134: Aufputzgehäuse für Lesersteuerung weiß
A135: E850 | B135: E850 | C135: E850 | D135: E850 | E135: E850 | F135: E850 | G135: E850 | H135: E850 | I135: E850 | J135: E850 | K135: Software mit tragbarem Programmiergerät, inkl. USB-Anschlusskabel
A136: E855 | B136: E855 | C136: E855 | D136: E855 | E136: E855 | F136: E855 | G136: E855 | H136: E855 | I136: E855 | J136: E855 | K136: Hotel-Software, inkl. Kodierstation
A137: E950 | B137: E950 | C137: E950 | D137: E950 | E137: E950 | F137: E950 | G137: E950 | H137: E950 | I137: E950 | J137: E950 | K137: elink-Software, inkl. Programmiergerät
A138: E895 | B138: E895 | C138: E895 | D138: E895 | E138: E895 | F138: E895 | G138: E895 | H138: E895 | I138: E895 | J138: E895 | K138: Programmierkarte
A139: E871 | B139: E871 | C139: E871 | D139: E871 | E139: E871 | F139: E871 | G139: E871 | H139: E871 | I139: E871 | J139: E871 | K139: Notöffnungsadapter (inkl. 4 Batterien)
A140: SE24 | B140: SE24 | C140: SE24 | D140: SE60 | E140: SE65 | F140: SE66 | G140: SE37 | H140: SE36 | I140: SE35 | J140: E241 | K140: Elektronikschlüssel
A141: E890 | B141: E890 | C141: E890 | D141: E890 | E141: E890 | F141: E890 | G141: E890 | H141: E890 | I141: E890 | J141: E890 | K141: Schlüsselhalter Tacky (mind. Bestellmenge 5 Stück)
A142: E891 | B142: E891 | C142: E891 | D142: E891 | E142: E891 | F142: E891 | G142: E891 | H142: E891 | I142: E891 | J142: E891 | K142: Schlüsselanhänger-Transponder
A143: E892 | B143: E892 | C143: E892 | D143: E892 | E143: E892 | F143: E892 | G143: E892 | H143: E892 | I143: E892 | J143: E892 | K143: Schlüsselanhänger-Transponder Komfort-Ausführung
A144: E894 | B144: E894 | C144: E894 | D144: E894 | E144: E894 | F144: E894 | G144: E894 | H144: E894 | I144: E894 | J144: E894 | K144: Transponderkarte
A145: E896 | B145: E896 | C145: E896 | D145: E896 | E145: E896 | F145: E896 | G145: E896 | H145: E896 | I145: E896 | J145: E896 | K145: Transponderscheibe transparent oder selbstklebend weiß
A146: E898 | B146: E898 | C146: E898 | D146: E898 | E146: E898 | F146: E898 | G146: E898 | H146: E898 | I146: E898 | J146: E898 | K146: Schlüsselanhänger in verschiedenen Ausführungen, Standard+, Premium, Elegant (mind. Bestellmenge 5 Stück)
A147: E624ST | B147: E624ST | C147: E624ST | D147: E624ST | E147: E624ST | F147: E624ST | G147: E624ST | H147: E624ST | I147: E624ST | J147: E624ST | K147: Steckernetzteil für externe Versorgung von Leser und Zylinder
A148: E624UP | B148: E624UP | C148: E624UP | D148: E624UP | E148: E624UP | F148: E624UP | G148: E624UP | H148: E624UP | I148: E624UP | J148: E624UP | K148: Netzteil für Einbau in UP-Dose für externe Versorgung von Leser und Zylinder
A149: E680 | B149: E680 | C149: E680 | D149: E680 | E149: E680 | F149: E681 | G149: E682 | H149: E680 | I149: E680 | J149: E680 | K149: Kabelübergang, galvanisch verchromt
A150: Zusatzausstattungen für elektronische Schließanlagen (Auszug) | K150: Code (Schließplan Spalte ZAS) | L150: Beschreibung
A151: X | B151: X | C151: X | D151: X | E151: X | H151: X | I151: X | J151: X | K151: V | L151: verlängerte Achse
A152: Motorzylinder MZ02
B153: M550 | C153: M550 | D153: M550 | E153: M550 | H153: M550 | I153: M550 | K153: Motorzylinder MZ02, Grundlänge 30/30, inkl. Steuerung, Netzteil, Kabel und Türkontakt, matt vernickelt
B154: M551 | C154: M551 | D154: M551 | E154: M551 | H154: M551 | I154: M551 | K154: Motorzylinder MZ02, Grundlänge 30/30, inkl. Steuerung, Netzteil, Kabel und Türkontakt, F1 ähnlich
B155: M552 | C155: M552 | D155: M552 | E155: M552 | H155: M552 | I155: M552 | K155: Motorzylinder MZ02, Grundlänge 30/30, inkl. Steuerung, Netzteil, Kabel und Türkontakt, Edelstahl ähnlich
B156: M553 | C156: M553 | D156: M553 | E156: M553 | H156: M553 | I156: M553 | K156: Motorzylinder MZ02, Grundlänge 30/30, inkl. Steuerung, Netzteil, Kabel und Türkontakt, Messing poliert
A157: M554 | B157: M554 | C157: M554 | D157: M554 | E157: M554 | H157: M554 | I157: M554 | J157: M554 | K157: Motorzylinder MZ02, Grundlänge 30/30, inkl. Steuerung, Netzteil, Kabel und Türkontakt, matt vernickelt, mit Blindzylinder
A158: M555 | B158: M555 | C158: M555 | D158: M555 | E158: M555 | H158: M555 | I158: M555 | J158: M555 | K158: Motorzylinder MZ02, Grundlänge 30/30, inkl. Steuerung, Netzteil, Kabel und Türkontakt, F1 ähnlich, mit Blindzylinder
A159: M556 | B159: M556 | C159: M556 | D159: M556 | E159: M556 | H159: M556 | I159: M556 | J159: M556 | K159: Motorzylinder MZ02, Grundlänge 30/30, inkl. Steuerung, Netzteil, Kabel und Türkontakt, Edelstahl ähnlich, mit Blindzylinder
A160: M557 | B160: M557 | C160: M557 | D160: M557 | E160: M557 | H160: M557 | I160: M557 | J160: M557 | K160: Motorzylinder MZ02, Grundlänge 30/30, inkl. Steuerung, Netzteil, Kabel und Türkontakt, Messing poliert, mit Blindzylinder
B161: M558 | C161: M558 | D161: M558 | E161: M558 | H161: M558 | I161: M558 | K161: Motorzylinder MZ02, Grundlänge 30/30, inkl. Steuerung, Netzteil, Kabel und Türkontakt, matt vernickelt, ohne Innenknauf
A162: Zubehör Motorzylinder MZ02
A163: M540 | B163: M540 | C163: M540 | D163: M540 | E163: M540 | H163: M540 | I163: M540 | J163: M540 | K163: Wochenzeitschaltuhr für MZ02
A164: M541 | B164: M541 | C164: M541 | D164: M541 | E164: M541 | H164: M541 | I164: M541 | J164: M541 | K164: Warntonsirene

Sheet Mechanisch (hidden)
B1: Profildoppelzylinder mit Doppelfunktion, Grundlänge 30/30, Messing matt vernickelt, 3 Neusilberschlüssel | C1: Profildoppelzylinder, Grundlänge 30/30, Messing matt vernickelt, 3 Neusilberschlüssel | D1: Profildoppelzylinder, mit Not- und Gefahrenfunktion, Grundlänge 30/30, Messing matt vernickelt, 3 Neusilberschlüssel | E1: Profildoppelzylinder, Freilaufzylinder für Getriebeschlösser, Grundlänge 30/30, Messing matt vernickelt, 3 Neusilberschlüssel | F1: Profildoppelzylinder schließbar nur mit beidseitig steckenden verschiedenen Schlüsseln, Grundlänge 30/30, Messing matt vernickelt, 3 Neusilberschlüssel | G1: Profildoppelzylinder, mit Gefahrenschlüssel-einrichtung, Grundlänge 30/30, Messing matt vernickelt, 3 Neusilberschlüssel | H1: Profildoppelzylinder, Grundlänge 26/26, einseitig blind, Messing matt vernickelt, 3 Neusilberschlüssel | I1: Profildoppelzylinder, Grundlänge 26/30, Messing matt vernickelt, 3 Neusilberschlüssel | J1: Profildoppelzylinder, mit Not- und Gefahrenfunktion, Grundlänge 26/35, Messing matt vernickelt, 3 Neusilberschlüssel | K1: Profilkurzzylinder, Grundlänge 26/26, Messing matt vernickelt, 3 Neusilberschlüssel | L1: Profildoppelzylinder, Grundlänge 30/30, Messing matt vernickelt, 3 Neusilberschlüssel, eine Seite Notöffnung, andere Seite Schließfunktion | M1: Profilknaufzylinder, Grundlänge 30/30, Messing matt vernickelt, 3 Neusilberschlüssel | N1: Profilknaufzylinder, Freilaufzylinder für Getriebeschlösser, Grundlänge 30/30, Messing matt vernickelt, 3 Neusilberschlüssel | O1: Profilknaufzylinder, Grundlänge 26/26, Messing matt vernickelt, 3 Neusilberschlüssel | P1: Profilknaufzylinder, Grundlänge 26/30, Messing matt vernickelt, 3 Neusilberschlüssel | Q1: Profilknaufzylinder, Grundlänge | R1: Profilknaufzylinder, mit Anti-Amok-Funktion, Grundlänge 30/30, Messing matt vernickelt, 3 Neusilberschlüssel | S1: Profilhalbzylinder, mit frei drehbarem Schließbart, Grundlänge 00/30, Messing matt vernickel, 3 Neusilberschlüssel | T1: Profilhalbzylinder, mit zwei Gewindebohrungen M4 auf der Rückseite, Grundlänge 00/30, Messing matt vernickelt, 3 Neusilberschlüssel | U1: Profilhalbzylinder mit Doppelfunktion, Grundlänge 00/30, Messing matt vernickelt, 3 Neusilberschlüssel | V1: Profilhalbzylinder, Grundlänge 00/26, Messing matt vernickelt, 3 Neusilberschlüssel | W1: Profilhalbzylinder, mit Freilauf für Schaltungen, Grundlänge 00/30, Messing matt vernickelt, 3 Neusilberschlüssel | X1: Profildoppelzylinder, Grundlänge 30/30, Messing matt vernickelt, 3 Neusilberschlüssel, Ausführung VdS AZ | Y1: Profilknaufzylinder, Grundlänge 30/30, Messing matt vernickelt, 3 Neusilberschlüssel, Ausführung VdS AZ | Z1: Profilhalbzylinder, Grundlänge 00/26, Messing matt vernickelt, 3 Neusilberschlüssel, Ausführung VdS AZ | AA1: Profildoppelzylinder, mit Not- und Gefahrenfunktion, Grundlänge 30/30, Messing matt vernickelt, 3 Neusilberschlüssel, Ausführung VdS AZ | AB1: Profildoppelzylinder, Grundlänge 30/30, Messing matt vernickelt, 3 Neusilberschlüssel, Ausführung VdS BZ | AC1: Profilknaufzylinder, Grundlänge 30/30, Messing matt vernickelt, 3 Neusilberschlüssel, Ausführung VdS BZ | AD1: Profilhalbzylinder, Grundlänge 00/26, Messing matt vernickelt, 3 Neusilberschlüssel, Ausführung VdS BZ | AE1: Profildoppelzylinder, mit Not- und Gefahrenfunktion, Grundlänge 30/30, Messing matt vernickelt, 3 Neusilberschlüssel, Ausführung VdS BZ | AF1: Profildoppelzylinder, Grundlänge 30/30, Messing matt vernickelt, 3 Neusilberschlüssel, ABH SKG einseitig | AG1: Profilknaufzylinder, Grundlänge 30/30, Messing matt vernickelt, 3 Neusilberschlüssel, ABH SKG einseitig | AH1: Profilhalbzylinder, Grundlänge 00/26, Messing matt vernickelt, 3 Neusilberschlüssel, ABH SKG einseitig | AI1: Profildoppelzylinder, mit Not- und Gefahrenfunktion, Grundlänge 30/30, Messing matt vernickelt, 3 Neusilberschlüssel, ABH SKG einseitig | AJ1: Schweres Vorhangschloß, Schloßkörper Messing gebürstet, 30er oder 80er Niro-Bügel, 3 Neusilberschlüssel | AK1: Zylinder-Hebelschloß, Messing matt vernickelt, 3 Neusilberschlüssel | AL1: Zylinder-Hebelschloß, Schlüssel im offenem bzw. geschlossenem Zustand abziehbar, Messing matt vernickelt, 3 Neusilberschlüssel | AM1: Zylinder-Hebelschloß, Messing matt vernickelt, 3 Neusilberschlüssel, für Renz-Briefkästen, mit Hebel 50 62 059 und Befestigungsrundmutter | AN1: Aussenzylinder für Kastenschlösser | AO1: Rundzylinder Durchmesser 32mm für Garagentore | AP1: Aussenzylinder für Kastenschloss Nr. 2611 | AQ1: Aussenzylinder für Kastenschloss Nr. 2621 | AR1: Kontaktzylinder für Aufzüge | AS1: Rundzylinder Durchmesser 30mm für Garagentore aus Stahl | AT1: Rundzylinder Durchmesser 30mm für Garagentore aus Holz | AU1: Aussen- und Innenzylinder für Zusatzschloss Nr. 2516 | AV1: Aussen- und Innenzylinder für Kastenschloss Nr. 542 und Nr. 2524 | AW1: Aussen- und Innenzylinder für Nr. 2616 | AX1: Aussen- und Innenzylinder für Nr. 2626 | AY1: Möbelschloss-Rundzylinder, Durchmesser 23mm, für Nr. 592 | AZ1: Zylinder für Durchsteckmontage, nur verwendbar für Nr. 546, 548 und 549 | BA1: Möbelschloss-Rundzylinder, Durchmesser 30mm, für Nr. 592 | BB1: Dreh- und verschließbare Olive, mit Zylinder 597, für Nr. 546, 548 und 549 | BC1: Möbelriegelschloss 40mm Dorn | BD1: Drehstangenschloss 40mm Dorn für geteilte Drehstangen | BE1: Drehstangenschloss 25mm Dorn für geteilte Drehstangen | BF1: Aufliegendes Möbelriegelschloss 25-50mm Dorn | BG1: feststehende Olive, matt vernickelt | BH1: drehbare Olive, matt vernickelt | BI1: Knaufzylinder, beidseitig Knauf, Messing matt vernickelt | BJ1: Knaufzylinder, asymetrisch, beidseitig Knauf, Messing matt vernickelt | BK1: Knaufzylinder, Knauf/blind, Messing matt vernickelt | BL1: Profilblindzylinder, Grundlänge 26/26 oder 00/26, Messing matt vernickelt | BM1: Knaufhalbzylinder, Grundlänge 00/30, Messing matt vernickelt | BN1: Knaufzylinder mit optischer Verschlussanzeige, Grundlänge 30/30, Messing matt vernickelt | BO1: Doppelzylinder, Grundlänge 30/30, Messing matt vernickelt, einseitig blind, andere Seite Notöffnung | BP1: Doppelzylinder, Grundlänge 30/30, Messing matt vernickelt, beidseitig Notöffnung | BQ1: Knaufzylinder, Grundlänge 30/30, Messing matt vernickelt, einseitig Notöffnung, andere Seite Knauf
A4: Standard | C4: 1400 | D4: 1463 | E4: 1408 | F4: 1478 | G4: 1479 | H4: 1480 | I4: 1481 | J4: 1483 | K4: 1488 | L4: 1489 | M4: 1405 | N4: 1406 | O4: 1407 | P4: 1484 | Q4: 1474 | R4: 1475 | S4: 1312 | T4: 1319 | V4: 1410 | W4: 1415 | AJ4: 2201 | AK4: 1250 | AL4: 1251 | AM4: 1253 | AN4: 500 | AO4: 500F | AP4: 501 | AQ4: 503 | AR4: 560 | AS4: 586 | AT4: 587 | AU4: 2530 | AV4: 2532 | AW4: 2534 | AX4: 2613 | AY4: 593 | AZ4: 598 | BA4: 692 | BB4: 550 | BC4: 546 | BD4: 548 | BE4: 549 | BF4: 592 | BG4: 520 | BH4: 530 | BI4: 1304 | BJ4: 1307 | BK4: 1380 | BL4: 1401 | BM4: 1413 | BN4: 1477 | BO4: 1482 | BP4: 1486 | BQ4: 1487
A5: CARAT | C5: 1400 | D5: 1463 | E5: 1408 | H5: 1480 | I5: 1481 | J5: 1483 | K5: 1488 | L5: 1489 | M5: 1405 | N5: 1406 | O5: 1407 | P5: 1484 | Q5: 1474 | S5: 1312 | T5: 1319 | V5: 1410 | W5: 1415 | AJ5: 2201 | AK5: 1250 | AL5: 1251 | AM5: 1253 | AN5: 500 | AO5: 500F | AP5: 501 | AQ5: 503 | AR5: 560 | AS5: 586 | AT5: 587 | AU5: 2530 | AV5: 2532 | AW5: 2534 | AX5: 2613 | AY5: 593 | AZ5: 598 | BA5: 692 | BB5: 550 | BC5: 546 | BD5: 548 | BE5: 549 | BF5: 592 | BG5: 520 | BH5: 530 | BI5: 1304 | BJ5: 1307 | BK5: 1380 | BL5: 1401 | BM5: 1413 | BN5: 1477 | BO5: 1482 | BP5: 1486 | BQ5: 1487
A6: HSR | B6: 1399 | C6: 1400 | D6: 1463 | E6: 1408 | F6: 1478 | G6: 1479 | H6: 1480 | I6: 1481 | J6: 1483 | K6: 1488 | L6: 1489 | M6: 1405 | N6: 1406 | O6: 1407 | P6: 1484 | Q6: 1474 | R6: 1475 | S6: 1312 | T6: 1319 | U6: 1398 | V6: 1410 | W6: 1415 | AJ6: 2201 | AK6: 1250 | AL6: 1251 | AM6: 1253 | AN6: 500 | AO6: 500F | AP6: 501 | AQ6: 503 | AR6: 560 | AS6: 586 | AT6: 587 | AU6: 2530 | AV6: 2532 | AW6: 2534 | AX6: 2613 | AY6: 593 | AZ6: 598 | BA6: 692 | BB6: 550 | BC6: 546 | BD6: 548 | BE6: 549 | BF6: 592 | BG6: 520 | BH6: 530 | BI6: 1304 | BJ6: 1307 | BK6: 1380 | BL6: 1401 | BM6: 1413 | BN6: 1477 | BO6: 1482 | BP6: 1486 | BQ6: 1487
A7: STR | B7: 1399 | C7: 1400 | D7: 1463 | E7: 1408 | F7: 1478 | G7: 1479 | H7: 1480 | I7: 1481 | J7: 1483 | K7: 1488 | L7: 1489 | M7: 1405 | N7: 1406 | O7: 1407 | P7: 1484 | Q7: 1474 | R7: 1475 | S7: 1312 | T7: 1319 | U7: 1398 | V7: 1410 | W7: 1415 | X7: A400 | Y7: A405 | Z7: A410 | AA7: A463 | AB7: B400 | AC7: B405 | AD7: B410 | AE7: B463 | AF7: K400 | AG7: K405 | AH7: K410 | AI7: K463 | AJ7: 2201 | AK7: 1250 | AL7: 1251 | AM7: 1253 | AN7: 500 | AO7: 500F | AP7: 501 | AQ7: 503 | AR7: 560 | AS7: 586 | AT7: 587 | AU7: 2530 | AV7: 2532 | AW7: 2534 | AX7: 2613 | AY7: 593 | AZ7: 598 | BA7: 692 | BB7: 550 | BC7: 546 | BD7: 548 | BE7: 549 | BF7: 592 | BG7: 520 | BH7: 530 | BI7: 1304 | BJ7: 1307 | BK7: 1380 | BL7: 1401 | BM7: 1413 | BN7: 1477 | BO7: 1482 | BP7: 1486 | BQ7: 1487
A8: TH6 | B8: 1399 | C8: 1400 | D8: 1463 | E8: 1408 | F8: 1478 | G8: 1479 | H8: 1480 | I8: 1481 | J8: 1483 | K8: 1488 | L8: 1489 | M8: 1405 | N8: 1406 | O8: 1407 | P8: 1484 | Q8: 1474 | R8: 1475 | S8: 1312 | T8: 1319 | U8: 1398 | V8: 1410 | W8: 1415 | AB8: B400 | AC8: B405 | AD8: B410 | AE8: B463 | AF8: K400 | AG8: K405 | AH8: K410 | AI8: K463 | AJ8: 2201 | AK8: 1250 | AL8: 1251 | AM8: 1253 | AN8: 500 | AO8: 500F | AP8: 501 | AQ8: 503 | AR8: 560 | AS8: 586 | AT8: 587 | AU8: 2530 | AV8: 2532 | AW8: 2534 | AX8: 2613 | AY8: 593 | AZ8: 598 | BA8: 692 | BB8: 550 | BC8: 546 | BD8: 548 | BE8: 549 | BF8: 592 | BG8: 520 | BH8: 530 | BI8: 1304 | BJ8: 1307 | BK8: 1380 | BL8: 1401 | BM8: 1413 | BN8: 1477 | BO8: 1482 | BP8: 1486 | BQ8: 1487
A9: CARAT P1 | C9: 1400 | D9: 1463 | E9: 1408 | H9: 1480 | I9: 1481 | J9: 1483 | K9: 1488 | M9: 1405 | N9: 1406 | O9: 1407 | P9: 1484 | Q9: 1474 | S9: 1312 | T9: 1319 | V9: 1410 | W9: 1415 | AF9: K400 | AG9: K405 | AH9: K410 | AI9: K463 | AJ9: 2201 | AK9: 1250 | AL9: 1251 | AM9: 1253 | AN9: 500 | BI9: 1304 | BJ9: 1307 | BK9: 1380 | BL9: 1401 | BM9: 1413 | BN9: 1477 | BO9: 1482 | BP9: 1486 | BQ9: 1487
A10: 2VE | C10: 3600 | D10: 3663 | E10: 3608 | H10: 3680 | I10: 3681 | J10: 3683 | K10: 3688 | L10: 3689 | M10: 3605 | N10: 3606 | O10: 3607 | P10: 3684 | R10: 3675 | S10: 3612 | T10: 3619 | V10: 3610 | W10: 3615 | AJ10: 3601 | AK10: 3650 | AL10: 3651 | AM10: 3657 | AN10: 3652 | AO10: 3632 | AQ10: 3603 | AR10: 3660 | AU10: 3616 | AV10: 3624 | AW10: 3656 | AX10: 3613 | BI10: 1304 | BJ10: 1307 | BK10: 1380 | BL10: 1401 | BM10: 1413 | BN10: 1477 | BO10: 1482 | BP10: 1486 | BQ10: 1487
A11: 3VE | C11: 3600 | D11: 3663 | E11: 3608 | H11: 3680 | I11: 3681 | J11: 3683 | K11: 3688 | L11: 3689 | M11: 3605 | N11: 3606 | O11: 3607 | P11: 3684 | Q11: 3674 | R11: 3675 | S11: 3612 | T11: 3619 | V11: 3610 | W11: 3615 | AB11: B300 | AC11: B305 | AD11: B310 | AE11: B363 | AF11: K360 | AG11: K365 | AH11: K361 | AI11: K363 | AJ11: 3601 | AK11: 3650 | AL11: 3651 | AM11: 3657 | AN11: 3652 | AO11: 3632 | AQ11: 3603 | AR11: 3660 | AU11: 3616 | AV11: 3624 | AW11: 3656 | AX11: 3613 | AY11: 3693 | AZ11: 3694 | BA11: 3695 | BB11: 550 | BC11: 546 | BD11: 548 | BE11: 549 | BF11: 592 | BG11: 520 | BH11: 530 | BI11: 1304 | BJ11: 1307 | BK11: 1380 | BL11: 1401 | BM11: 1413 | BN11: 1477 | BO11: 1482 | BP11: 1486 | BQ11: 1487
A12: CARAT P3 | C12: 3600 | D12: 3663 | E12: 3608 | H12: 3680 | I12: 3681 | J12: 3683 | K12: 3688 | M12: 3605 | N12: 3606 | O12: 3607 | P12: 3684 | Q12: 3674 | S12: 3612 | T12: 3619 | V12: 3610 | W12: 3615 | AF12: K360 | AG12: K365 | AH12: K361 | AI12: K363 | AJ12: 3601 | AK12: 3650 | AL12: 3651 | AM12: 3657 | AN12: 3652 | AO12: 3632 | BI12: 1304 | BJ12: 1307 | BK12: 1380 | BL12: 1401 | BM12: 1413 | BN12: 1477 | BO12: 1482 | BP12: 1486 | BQ12: 1487
A13: WZ | C13: 2122 | D13: 2163 | E13: 2108 | F13: 2178 | G13: 2179 | H13: 2180 | I13: 2181 | J13: 2183 | K13: 2188 | L13: 2189 | M13: 2105 | N13: 2106 | O13: 2107 | P13: 2184 | Q13: 2174 | S13: 2112 | T13: 2119 | V13: 2110 | W13: 2115 | AJ13: 2101 | AK13: 2150 | AL13: 2151 | AM13: 2157 | AN13: 2152 | AO13: 2132 | AP13: 2155 | AQ13: 2103 | AR13: 2160 | AS13: 2154 | AT13: 2153 | AU13: 2116 | AV13: 2124 | AW13: 2156 | AX13: 2113 | AY13: 2193 | AZ13: 2198 | BA13: 2192 | BB13: 550 | BC13: 546 | BD13: 548 | BE13: 549 | BF13: 592 | BG13: 520 | BH13: 530 | BI13: 1304 | BJ13: 1307 | BK13: 1380 | BL13: 1401 | BM13: 1413 | BN13: 1477 | BO13: 1482 | BP13: 1486 | BQ13: 1487

Sheet Elektronik (hidden)
B1: Elektronischer Doppelknaufzylinder, Serie easy2.0 | C1: Elektronischer Doppelknauf blind | D1: Elektronischer Doppelknauf beidseitig E | E1: Elektronischer Halbzylinder | F1: Elektronischer Panikzylinder | G1: Elektronischer Panikzyl. Blind | H1: Elektronikleser, schmale Abdeckkappe | I1: Elektronikleser, breite Abdeckkappe | J1: Elektronischer Beschlag | K1: Elektronischer Beschlag Brand | L1: Elektronikleser, schmale Abdeckkappe System "elink" | M1: Elektronikleser, breite Abdeckkappe System "elink" | N1: Zusatzleser, schmale Abdeckkappe System "elink" | O1: Zusatzleser, breite Abdeckkappe System "elink" | P1: Elektronischer Beschlag | Q1: Elektronischer Beschlag Brand | R1: Geschlossene Abdeckkappe Nirosta für Innenknauf (nur E804, E808, E904 und E908) | S1: Aufputzgehäuse für Lesersteuerung weiß | T1: Software mit tragbarem Programmiergerät, inkl. USB-Anschlusskabel | U1: Hotel-Software, inkl. Kodierstation | V1: elink-Software, inkl. Programmiergerät | W1: Programmierkarte | X1: Notöffnungsadapter (inkl. 4 Batterien) | Y1: Elektronikschlüssel | Z1: Tacky | AA1: Schlüsselanhänger-Transponder | AB1: Schlüsselanhänger-Transponder Komfort-Ausführung | AC1: Transponderkarte | AD1: Transponderscheibe transparent oder selbstklebend weiß | AE1: Sonderanhänger | AF1: Steckernetzteil für externe Versorgung von Leser und Zylinder | AG1: Netzteil für Einbau in UP-Dose für externe Versorgung von Leser und Zylinder | AH1: Kabelübergang, galvanisch verchromt
A4: Standard | B4: E204 | C4: E203 | D4: E207 | E4: E213 | F4: E214 | G4: E215 | H4: E831 | I4: E832 | J4: E820 | K4: E821 | L4: E931 | M4: E932 | N4: E935 | O4: E936 | P4: E920 | Q4: E821 | R4: E881 | S4: E837 | T4: E850 | U4: E855 | V4: E950 | W4: E895 | X4: E871 | Y4: SE24 | Z4: E890 | AA4: E891 | AB4: E892 | AC4: E894 | AD4: E896 | AE4: E898 | AF4: E624ST | AG4: E624UP | AH4: E680 | AM4: M554 | AN4: M555 | AO4: M556 | AP4: M557 | AR4: M540 | AS4: M541
A5: CARAT | B5: E204 | C5: E203 | D5: E207 | E5: E213 | F5: E214 | G5: E215 | H5: E831 | I5: E832 | J5: E820 | K5: E821 | L5: E931 | M5: E932 | N5: E935 | O5: E936 | P5: E920 | Q5: E821 | R5: E881 | S5: E837 | T5: E850 | U5: E855 | V5: E950 | W5: E895 | X5: E871 | Y5: SE24 | Z5: E890 | AA5: E891 | AB5: E892 | AC5: E894 | AD5: E896 | AE5: E898 | AF5: E624ST | AG5: E624UP | AH5: E680 | AI5: M550 | AJ5: M551 | AK5: M552 | AL5: M553 | AM5: M554 | AN5: M555 | AO5: M556 | AP5: M557 | AQ5: M558 | AR5: M540 | AS5: M541
A6: HSR | B6: E204 | C6: E203 | D6: E207 | E6: E213 | F6: E214 | G6: E215 | H6: E831 | I6: E832 | J6: E820 | K6: E821 | L6: E931 | M6: E932 | N6: E935 | O6: E936 | P6: E920 | Q6: E821 | R6: E881 | S6: E837 | T6: E850 | U6: E855 | V6: E950 | W6: E895 | X6: E871 | Y6: SE24 | Z6: E890 | AA6: E891 | AB6: E892 | AC6: E894 | AD6: E896 | AE6: E898 | AF6: E624ST | AG6: E624UP | AH6: E680 | AI6: M550 | AJ6: M551 | AK6: M552 | AL6: M553 | AM6: M554 | AN6: M555 | AO6: M556 | AP6: M557 | AQ6: M558 | AR6: M540 | AS6: M541
A7: STR | B7: E204 | C7: E203 | D7: E207 | E7: E213 | F7: E214 | G7: E215 | H7: E831 | I7: E832 | J7: E820 | K7: E821 | L7: E931 | M7: E932 | N7: E935 | O7: E936 | P7: E920 | Q7: E821 | R7: E881 | S7: E837 | T7: E850 | U7: E855 | V7: E950 | W7: E895 | X7: E871 | Y7: SE24 | Z7: E890 | AA7: E891 | AB7: E892 | AC7: E894 | AD7: E896 | AE7: E898 | AF7: E624ST | AG7: E624UP | AH7: E680 | AI7: M550 | AJ7: M551 | AK7: M552 | AL7: M553 | AM7: M554 | AN7: M555 | AO7: M556 | AP7: M557 | AQ7: M558 | AR7: M540 | AS7: M541
A8: TH6 | B8: E204 | C8: E203 | D8: E207 | E8: E213 | F8: E214 | G8: E215 | H8: E831 | I8: E832 | J8: E820 | K8: E821 | L8: E931 | M8: E932 | N8: E935 | O8: E936 | P8: E920 | Q8: E821 | R8: E881 | S8: E837 | T8: E850 | U8: E855 | V8: E950 | W8: E895 | X8: E871 | Y8: SE60 | Z8: E890 | AA8: E891 | AB8: E892 | AC8: E894 | AD8: E896 | AE8: E898 | AF8: E624ST | AG8: E624UP | AH8: E680 | AI8: M550 | AJ8: M551 | AK8: M552 | AL8: M553 | AM8: M554 | AN8: M555 | AO8: M556 | AP8: M557 | AQ8: M558 | AR8: M540 | AS8: M541
A9: CARAT P1 | B9: E204 | C9: E203 | D9: E207 | E9: E213 | F9: E214 | G9: E215 | H9: E831 | I9: E832 | J9: E820 | K9: E821 | L9: E931 | M9: E932 | N9: E935 | O9: E936 | P9: E920 | Q9: E821 | R9: E881 | S9: E837 | T9: E850 | U9: E855 | V9: E950 | W9: E895 | X9: E871 | Y9: SE65 | Z9: E890 | AA9: E891 | AB9: E892 | AC9: E894 | AD9: E896 | AE9: E898 | AF9: E624ST | AG9: E624UP | AH9: E680 | AI9: M550 | AJ9: M551 | AK9: M552 | AL9: M553 | AM9: M554 | AN9: M555 | AO9: M556 | AP9: M557 | AQ9: M558 | AR9: M540 | AS9: M541
A10: 2VE | B10: E204 | C10: E203 | D10: E207 | E10: E213 | F10: E214 | G10: E215 | H10: E831 | I10: E832 | J10: E820 | K10: E821 | L10: E931 | M10: E932 | N10: E935 | O10: E936 | P10: E920 | Q10: E821 | R10: E881 | S10: E837 | T10: E850 | U10: E855 | V10: E950 | W10: E895 | X10: E871 | Y10: SE37 | Z10: E890 | AA10: E891 | AB10: E892 | AC10: E894 | AD10: E896 | AE10: E898 | AF10: E624ST | AG10: E624UP | AH10: E680
A11: 3VE | B11: E204 | C11: E203 | D11: E207 | E11: E213 | F11: E214 | G11: E215 | H11: E831 | I11: E832 | J11: E820 | K11: E821 | L11: E931 | M11: E932 | N11: E935 | O11: E936 | P11: E920 | Q11: E821 | R11: E881 | S11: E837 | T11: E850 | U11: E855 | V11: E950 | W11: E895 | X11: E871 | Y11: SE36 | Z11: E890 | AA11: E891 | AB11: E892 | AC11: E894 | AD11: E896 | AE11: E898 | AF11: E624ST | AG11: E624UP | AH11: E680 | AI11: M550 | AJ11: M551 | AK11: M552 | AL11: M553 | AM11: M554 | AN11: M555 | AO11: M556 | AP11: M557 | AQ11: M558 | AR11: M540 | AS11: M541
A12: CARAT P3 | B12: E204 | C12: E203 | D12: E207 | E12: E213 | F12: E214 | G12: E215 | H12: E831 | I12: E832 | J12: E820 | K12: E821 | L12: E931 | M12: E932 | N12: E935 | O12: E936 | P12: E920 | Q12: E821 | R12: E881 | S12: E837 | T12: E850 | U12: E855 | V12: E950 | W12: E895 | X12: E871 | Y12: SE35 | Z12: E890 | AA12: E891 | AB12: E892 | AC12: E894 | AD12: E896 | AE12: E898 | AF12: E624ST | AG12: E624UP | AH12: E680 | AI12: M550 | AJ12: M551 | AK12: M552 | AL12: M553 | AM12: M554 | AN12: M555 | AO12: M556 | AP12: M557 | AQ12: M558 | AR12: M540 | AS12: M541
A13: WZ | B13: E204 | C13: E203 | D13: E207 | E13: E213 | F13: E214 | G13: E215 | H13: E831 | I13: E832 | J13: E820 | K13: E821 | L13: E931 | M13: E932 | N13: E935 | O13: E936 | P13: E920 | Q13: E821 | R13: E881 | S13: E837 | T13: E850 | U13: E855 | V13: E950 | W13: E895 | X13: E871 | Y13: E241 | Z13: E890 | AA13: E891 | AB13: E892 | AC13: E894 | AD13: E896 | AE13: E898 | AF13: E624ST | AG13: E624UP | AH13: E680 | AM13: M554 | AN13: M555 | AO13: M556 | AP13: M557 | AR13: M540 | AS13: M541
